Workbook

Sheet Révisions
A1: Version | B1: Date | C1: Commentaires
A2: V3 | B2: 2017-03-03 | C2: > Suppression de la validation des données empêchant de renseigner simultanément des coûts de fonctionnement et d'investissement > Une ligne de coûts est catégorisée en investissement si la colonne investissement contient une dépense non nulle => modification des logiques ultérieures > Suppression des onglets de "test début de tâche" et "test fin de tâche" > Les tâches s'étalant sur plusieurs étapes clés voient leur remplissage sur fond rose > Onglet de comparaison entre affectation tâche à EC et prorata temporis
A3: V4 | B3: 2017-03-06 | C3: > Macro de ventilation du devis au prorata temporis
A4: V5 | B4: 2017-03-13 | C4: > toilettage macro prorata temporis avec bouton d'exécution.
A5: V6 | B5: 2017-03-31 | C5: > Explications si erreur dans certaines formule (recherche EC) > Correction de la formule recherche EC pour fonctionner avec tâche 1 mois en fin de calendrier

Sheet Explications

Sheet Calendrier
A1: T0 | B1: 2017-02-01
A3: Etapes clés | B3: Délais en mois | C3: Date prévisionnelle
A4: T0 | B4: 0 | C4: =EDATE(T0,B4) -> 2017-02-01
A5: EC01 | B5: 12 | C5: =EDATE(T0,B5) -> 2018-02-01
A6: EC02 | B6: 24 | C6: =EDATE(T0,B6) -> 2019-02-01
A7: EC03 | B7: 36 | C7: =EDATE(T0,B7) -> 2020-02-01

Sheet Partenaires
A1: Nom court | B1: Nom des partenaires | C1: Salaire Cat. 1 | D1: Salaire Cat. 2 | E1: Salaire Cat. 3 | F1: Catégorie partenaire | G1: Type de coûts
A2: IXE | B2: Société IXE SARL | C2: 8000 | D2: 6000 | E2: 4000 | F2: PE | G2: Complets
A3: IGREC | B3: Société IGREC SA | C3: 7500 | D3: 5000 | E3: 3500 | F3: ME | G3: Complets
A4: ZED | B4: Grande entreprise ZED | C4: 8500 | D4: 5500 | E4: 3000 | F4: GE | G4: Complets
A5: ALPHA | B5: Laboratoire université ALPHA | C5: 6000 | D5: 5500 | E5: 4000 | F5: Labo | G5: Complets
A6: BETA | B6: Laboratoire université BETA | C6: 6000 | D6: 5500 | E6: 4000 | F6: Labo | G6: Marginaux

Sheet Devis
D3: Nombre de valeurs uniques (tâches, partenaires, livrables) | I3: =SUM(Devis[Personne.mois cat 1]) -> 358 | J3: =SUM(Devis[Personne.mois cat 2]) -> 152 | K3: =SUM(Devis[Personne.mois cat 3]) -> 38 | L3: =SUM(Devis[Dépenses de sous-traitance H.T.]) -> 1008500 | M3: =SUM(Devis[Contribution aux amortissements]) -> 392500 | N3: =SUM(Devis[Autres dépenses]) -> 232500 | O3: =SUM(Devis[Investissements]) -> 950000 | P3: =SUM(Devis[Classification]) -> 0 | Q3: <== TOTAL ==> | U3: =SUM(Devis[Total pers.mois présentés]) -> 533 | V3: =SUM(Devis[Salaires]) -> 3785000 | W3: =SUM(Devis[Frais généraux]) -> 757000 | X3: =SUM(Devis[Sous-traitance]) -> 1008500 | Y3: =SUM(Devis[Dotations aux amortissements]) -> 392500 | Z3: =SUM(Devis[Autres dépenses2]) -> 232500 | AA3: =SUM(Devis[Coûts de fonctionnement]) -> 6047900 | AB3: =SUM(Devis[Coûts d''investissement]) -> 1077600 | AC3: =SUM(Devis[Coûts totaux]) -> 7125500
D4: =SUMPRODUCT(1/COUNTIF(Devis[Intitulé de la tache ou de l''investissement],Devis[Intitulé de la tache ou de l''investissement])) -> 13 | E4: =SUMPRODUCT(1/COUNTIF(Devis[Partenaire],Devis[Partenaire])) -> 5 | H4: =SUMPRODUCT(1/COUNTIF(Devis[Livrable],Devis[Livrable])) -> 16 | I4: =SUBTOTAL(9,Devis[Personne.mois cat 1]) -> 358 | J4: =SUBTOTAL(9,Devis[Personne.mois cat 2]) -> 152 | K4: =SUBTOTAL(9,Devis[Personne.mois cat 3]) -> 38 | L4: =SUBTOTAL(9,Devis[Dépenses de sous-traitance H.T.]) -> 1008500 | M4: =SUBTOTAL(9,Devis[Contribution aux amortissements]) -> 392500 | N4: =SUBTOTAL(9,Devis[Autres dépenses]) -> 232500 | O4: =SUBTOTAL(9,Devis[Investissements]) -> 950000 | P4: =SUBTOTAL(9,Devis[Classification]) -> 0 | Q4: <== SOUS TOTAL ==> | U4: =SUBTOTAL(9,Devis[Total pers.mois présentés]) -> 533 | V4: =SUBTOTAL(9,Devis[Salaires]) -> 3785000 | W4: =SUBTOTAL(9,Devis[Frais généraux]) -> 757000 | X4: =SUBTOTAL(9,Devis[Sous-traitance]) -> 1008500 | Y4: =SUBTOTAL(9,Devis[Dotations aux amortissements]) -> 392500 | Z4: =SUBTOTAL(9,Devis[Autres dépenses2]) -> 232500 | AA4: =SUBTOTAL(9,Devis[Coûts de fonctionnement]) -> 6047900 | AB4: =SUBTOTAL(9,Devis[Coûts d''investissement]) -> 1077600 | AC4: =SUBTOTAL(9,Devis[Coûts totaux]) -> 7125500
B5: zone de saisie | E5: zone de saisie | H5: zone de saisie | K5: zone de saisie | N5: zone de saisie | Q5: Colonnes calculées, ne rien modifier | S5: Colonnes calculées, ne rien modifier | U5: Colonnes calculées, ne rien modifier | X5: Colonnes calculées, ne rien modifier | AA5: Colonnes calculées, ne rien modifier
A6: Lot | B6: Sous-lot (facultatif) | C6: Tache | D6: Intitulé de la tache ou de l'investissement | E6: Partenaire | F6: Mois de début | G6: Mois de fin | H6: Livrable | I6: Personne.mois cat 1 | J6: Personne.mois cat 2 | K6: Personne.mois cat 3 | L6: Dépenses de sous-traitance H.T. | M6: Contribution aux amortissements | N6: Autres dépenses | O6: Investissements | P6: Classification | Q6: Destination des aides | R6: Type de coûts | S6: Durée | T6: Etape-clef | U6: Total pers.mois présentés | V6: Salaires | W6: Frais généraux | X6: Sous-traitance | Y6: Dotations aux amortissements | Z6: Autres dépenses2 | AA6: Coûts de fonctionnement | AB6: Coûts d'investissement | AC6: Coûts totaux | AD6: Tâche couvrant plusieurs EC
A7: LOT 1 | C7: 1 | D7: Gestion de projet | E7: IXE | F7: 1 | G7: 12 | H7: 1.1 | I7: 1 | N7: 1000 | Q7: =IF(Devis[[#This Row],[Investissements]]>0,"Investissement","Fonctionnement") -> Fonctionnement | R7: =INDEX(Partenaires[Type de coûts],MATCH(Devis[[#This Row],[Partenaire]],Partenaires[Nom court],0)) -> Complets | S7: =Devis[[#This Row],[Mois de fin]]-Devis[[#This Row],[Mois de début]]+1 -> 12 | T7: =IFERROR(INDEX(Calendrier[Etapes clés],MATCH(INT((Devis[[#This Row],[Mois de début]]+Devis[[#This Row],[Mois de fin]]+1)/2)-1,Calendrier[Délais en mois],1)+1),"#! Vérifiez l'onglet Calendrier et que le milieu de la tâche tombe bien dans une étape clé") -> EC01 | U7: =IF(Devis[[#This Row],[Destination des aides]]="Fonctionnement",SUM(Devis[[#This Row],[Personne.mois cat 1]:[Personne.mois cat 3]]),0) -> 1 | V7: =SUMPRODUCT(INDEX(Partenaires[[Salaire Cat. 1]:[Salaire Cat. 3]],MATCH(Devis[[#This Row],[Partenaire]],Partenaires[Nom court],0),),Devis[[#This Row],[Personne.mois cat 1]:[Personne.mois cat 3]]) -> 8000 | W7: =20%*Devis[[#This Row],[Salaires]] -> 1600 | X7: =Devis[[#This Row],[Dépenses de sous-traitance H.T.]] -> 0 | Y7: =Devis[[#This Row],[Contribution aux amortissements]] -> 0 | Z7: =Devis[[#This Row],[Autres dépenses]] -> 1000 | AA7: =IF(Devis[[#This Row],[Destination des aides]]="Fonctionnement",SUM(Devis[[#This Row],[Salaires]:[Autres dépenses2]]),0) -> 10600 | AB7: =IF(Devis[[#This Row],[Destination des aides]]="Investissement",SUM(Devis[[#This Row],[Salaires]:[Autres dépenses2]],Devis[[#This Row],[Investissements]]),0) -> 0 | AC7: =Devis[[#This Row],[Coûts de fonctionnement]]+Devis[[#This Row],[Coûts d''investissement]] -> 10600 | AD7: =(MATCH(Devis[[#This Row],[Mois de début]]-1,Calendrier[Délais en mois],1)<>MATCH(Devis[[#This Row],[Mois de fin]]-1,Calendrier[Délais en mois],1)) -> FALSE
A8: LOT 1 | C8: 2 | D8: Gestion de projet | E8: IXE | F8: 13 | G8: 18 | H8: 1.2 | I8: 1 | N8: 1000 | Q8: =IF(Devis[[#This Row],[Investissements]]>0,"Investissement","Fonctionnement") -> Fonctionnement | R8: =INDEX(Partenaires[Type de coûts],MATCH(Devis[[#This Row],[Partenaire]],Partenaires[Nom court],0)) -> Complets | S8: =Devis[[#This Row],[Mois de fin]]-Devis[[#This Row],[Mois de début]]+1 -> 6 | T8: =IFERROR(INDEX(Calendrier[Etapes clés],MATCH(INT((Devis[[#This Row],[Mois de début]]+Devis[[#This Row],[Mois de fin]]+1)/2)-1,Calendrier[Délais en mois],1)+1),"#! Vérifiez l'onglet Calendrier et que le milieu de la tâche tombe bien dans une étape clé") -> EC02 | U8: =IF(Devis[[#This Row],[Destination des aides]]="Fonctionnement",SUM(Devis[[#This Row],[Personne.mois cat 1]:[Personne.mois cat 3]]),0) -> 1 | V8: =SUMPRODUCT(INDEX(Partenaires[[Salaire Cat. 1]:[Salaire Cat. 3]],MATCH(Devis[[#This Row],[Partenaire]],Partenaires[Nom court],0),),Devis[[#This Row],[Personne.mois cat 1]:[Personne.mois cat 3]]) -> 8000 | W8: =20%*Devis[[#This Row],[Salaires]] -> 1600 | X8: =Devis[[#This Row],[Dépenses de sous-traitance H.T.]] -> 0 | Y8: =Devis[[#This Row],[Contribution aux amortissements]] -> 0 | Z8: =Devis[[#This Row],[Autres dépenses]] -> 1000 | AA8: =IF(Devis[[#This Row],[Destination des aides]]="Fonctionnement",SUM(Devis[[#This Row],[Salaires]:[Autres dépenses2]]),0) -> 10600 | AB8: =IF(Devis[[#This Row],[Destination des aides]]="Investissement",SUM(Devis[[#This Row],[Salaires]:[Autres dépenses2]],Devis[[#This Row],[Investissements]]),0) -> 0 | AC8: =Devis[[#This Row],[Coûts de fonctionnement]]+Devis[[#This Row],[Coûts d''investissement]] -> 10600 | AD8: =(MATCH(Devis[[#This Row],[Mois de début]]-1,Calendrier[Délais en mois],1)<>MATCH(Devis[[#This Row],[Mois de fin]]-1,Calendrier[Délais en mois],1)) -> FALSE
A9: LOT 1 | C9: 3 | D9: Gestion de projet | E9: IXE | F9: 25 | G9: 36 | H9: 1.3 | I9: 1 | N9: 1000 | Q9: =IF(Devis[[#This Row],[Investissements]]>0,"Investissement","Fonctionnement") -> Fonctionnement | R9: =INDEX(Partenaires[Type de coûts],MATCH(Devis[[#This Row],[Partenaire]],Partenaires[Nom court],0)) -> Complets | S9: =Devis[[#This Row],[Mois de fin]]-Devis[[#This Row],[Mois de début]]+1 -> 12 | T9: =IFERROR(INDEX(Calendrier[Etapes clés],MATCH(INT((Devis[[#This Row],[Mois de début]]+Devis[[#This Row],[Mois de fin]]+1)/2)-1,Calendrier[Délais en mois],1)+1),"#! Vérifiez l'onglet Calendrier et que le milieu de la tâche tombe bien dans une étape clé") -> EC03 | U9: =IF(Devis[[#This Row],[Destination des aides]]="Fonctionnement",SUM(Devis[[#This Row],[Personne.mois cat 1]:[Personne.mois cat 3]]),0) -> 1 | V9: =SUMPRODUCT(INDEX(Partenaires[[Salaire Cat. 1]:[Salaire Cat. 3]],MATCH(Devis[[#This Row],[Partenaire]],Partenaires[Nom court],0),),Devis[[#This Row],[Personne.mois cat 1]:[Personne.mois cat 3]]) -> 8000 | W9: =20%*Devis[[#This Row],[Salaires]] -> 1600 | X9: =Devis[[#This Row],[Dépenses de sous-traitance H.T.]] -> 0 | Y9: =Devis[[#This Row],[Contribution aux amortissements]] -> 0 | Z9: =Devis[[#This Row],[Autres dépenses]] -> 1000 | AA9: =IF(Devis[[#This Row],[Destination des aides]]="Fonctionnement",SUM(Devis[[#This Row],[Salaires]:[Autres dépenses2]]),0) -> 10600 | AB9: =IF(Devis[[#This Row],[Destination des aides]]="Investissement",SUM(Devis[[#This Row],[Salaires]:[Autres dépenses2]],Devis[[#This Row],[Investissements]]),0) -> 0 | AC9: =Devis[[#This Row],[Coûts de fonctionnement]]+Devis[[#This Row],[Coûts d''investissement]] -> 10600 | AD9: =(MATCH(Devis[[#This Row],[Mois de début]]-1,Calendrier[Délais en mois],1)<>MATCH(Devis[[#This Row],[Mois de fin]]-1,Calendrier[Délais en mois],1)) -> FALSE
A10: LOT 2 | C10: 1 | D10: Faisabilité brique techno | E10: IXE | F10: 1 | G10: 18 | H10: 2.1 | I10: 12 | J10: 6 | K10: 3 | L10: 50000 | M10: 25000 | N10: 10000 | Q10: =IF(Devis[[#This Row],[Investissements]]>0,"Investissement","Fonctionnement") -> Fonctionnement | R10: =INDEX(Partenaires[Type de coûts],MATCH(Devis[[#This Row],[Partenaire]],Partenaires[Nom court],0)) -> Complets | S10: =Devis[[#This Row],[Mois de fin]]-Devis[[#This Row],[Mois de début]]+1 -> 18 | T10: =IFERROR(INDEX(Calendrier[Etapes clés],MATCH(INT((Devis[[#This Row],[Mois de début]]+Devis[[#This Row],[Mois de fin]]+1)/2)-1,Calendrier[Délais en mois],1)+1),"#! Vérifiez l'onglet Calendrier et que le milieu de la tâche tombe bien dans une étape clé") -> EC01 | U10: =IF(Devis[[#This Row],[Destination des aides]]="Fonctionnement",SUM(Devis[[#This Row],[Personne.mois cat 1]:[Personne.mois cat 3]]),0) -> 21 | V10: =SUMPRODUCT(INDEX(Partenaires[[Salaire Cat. 1]:[Salaire Cat. 3]],MATCH(Devis[[#This Row],[Partenaire]],Partenaires[Nom court],0),),Devis[[#This Row],[Personne.mois cat 1]:[Personne.mois cat 3]]) -> 144000 | W10: =20%*Devis[[#This Row],[Salaires]] -> 28800 | X10: =Devis[[#This Row],[Dépenses de sous-traitance H.T.]] -> 50000 | Y10: =Devis[[#This Row],[Contribution aux amortissements]] -> 25000 | Z10: =Devis[[#This Row],[Autres dépenses]] -> 10000 | AA10: =IF(Devis[[#This Row],[Destination des aides]]="Fonctionnement",SUM(Devis[[#This Row],[Salaires]:[Autres dépenses2]]),0) -> 257800 | AB10: =IF(Devis[[#This Row],[Destination des aides]]="Investissement",SUM(Devis[[#This Row],[Salaires]:[Autres dépenses2]],Devis[[#This Row],[Investissements]]),0) -> 0 | AC10: =Devis[[#This Row],[Coûts de fonctionnement]]+Devis[[#This Row],[Coûts d''investissement]] -> 257800 | AD10: =(MATCH(Devis[[#This Row],[Mois de début]]-1,Calendrier[Délais en mois],1)<>MATCH(Devis[[#This Row],[Mois de fin]]-1,Calendrier[Délais en mois],1)) -> TRUE
A11: LOT 2 | C11: 1 | D11: Faisabilité brique techno | E11: IGREC | F11: 1 | G11: 12 | H11: 2.1 | I11: 6 | J11: 3 | L11: 15000 | M11: 5000 | N11: 5000 | Q11: =IF(Devis[[#This Row],[Investissements]]>0,"Investissement","Fonctionnement") -> Fonctionnement | R11: =INDEX(Partenaires[Type de coûts],MATCH(Devis[[#This Row],[Partenaire]],Partenaires[Nom court],0)) -> Complets | S11: =Devis[[#This Row],[Mois de fin]]-Devis[[#This Row],[Mois de début]]+1 -> 12 | T11: =IFERROR(INDEX(Calendrier[Etapes clés],MATCH(INT((Devis[[#This Row],[Mois de début]]+Devis[[#This Row],[Mois de fin]]+1)/2)-1,Calendrier[Délais en mois],1)+1),"#! Vérifiez l'onglet Calendrier et que le milieu de la tâche tombe bien dans une étape clé") -> EC01 | U11: =IF(Devis[[#This Row],[Destination des aides]]="Fonctionnement",SUM(Devis[[#This Row],[Personne.mois cat 1]:[Personne.mois cat 3]]),0) -> 9 | V11: =SUMPRODUCT(INDEX(Partenaires[[Salaire Cat. 1]:[Salaire Cat. 3]],MATCH(Devis[[#This Row],[Partenaire]],Partenaires[Nom court],0),),Devis[[#This Row],[Personne.mois cat 1]:[Personne.mois cat 3]]) -> 60000 | W11: =20%*Devis[[#This Row],[Salaires]] -> 12000 | X11: =Devis[[#This Row],[Dépenses de sous-traitance H.T.]] -> 15000 | Y11: =Devis[[#This Row],[Contribution aux amortissements]] -> 5000 | Z11: =Devis[[#This Row],[Autres dépenses]] -> 5000 | AA11: =IF(Devis[[#This Row],[Destination des aides]]="Fonctionnement",SUM(Devis[[#This Row],[Salaires]:[Autres dépenses2]]),0) -> 97000 | AB11: =IF(Devis[[#This Row],[Destination des aides]]="Investissement",SUM(Devis[[#This Row],[Salaires]:[Autres dépenses2]],Devis[[#This Row],[Investissements]]),0) -> 0 | AC11: =Devis[[#This Row],[Coûts de fonctionnement]]+Devis[[#This Row],[Coûts d''investissement]] -> 97000 | AD11: =(MATCH(Devis[[#This Row],[Mois de début]]-1,Calendrier[Délais en mois],1)<>MATCH(Devis[[#This Row],[Mois de fin]]-1,Calendrier[Délais en mois],1)) -> FALSE
A12: LOT 2 | C12: 1 | D12: Faisabilité brique techno | E12: ZED | F12: 1 | G12: 12 | H12: 2.1 | I12: 6 | J12: 3 | L12: 2500 | M12: 2500 | N12: 2500 | Q12: =IF(Devis[[#This Row],[Investissements]]>0,"Investissement","Fonctionnement") -> Fonctionnement | R12: =INDEX(Partenaires[Type de coûts],MATCH(Devis[[#This Row],[Partenaire]],Partenaires[Nom court],0)) -> Complets | S12: =Devis[[#This Row],[Mois de fin]]-Devis[[#This Row],[Mois de début]]+1 -> 12 | T12: =IFERROR(INDEX(Calendrier[Etapes clés],MATCH(INT((Devis[[#This Row],[Mois de début]]+Devis[[#This Row],[Mois de fin]]+1)/2)-1,Calendrier[Délais en mois],1)+1),"#! Vérifiez l'onglet Calendrier et que le milieu de la tâche tombe bien dans une étape clé") -> EC01 | U12: =IF(Devis[[#This Row],[Destination des aides]]="Fonctionnement",SUM(Devis[[#This Row],[Personne.mois cat 1]:[Personne.mois cat 3]]),0) -> 9 | V12: =SUMPRODUCT(INDEX(Partenaires[[Salaire Cat. 1]:[Salaire Cat. 3]],MATCH(Devis[[#This Row],[Partenaire]],Partenaires[Nom court],0),),Devis[[#This Row],[Personne.mois cat 1]:[Personne.mois cat 3]]) -> 67500 | W12: =20%*Devis[[#This Row],[Salaires]] -> 13500 | X12: =Devis[[#This Row],[Dépenses de sous-traitance H.T.]] -> 2500 | Y12: =Devis[[#This Row],[Contribution aux amortissements]] -> 2500 | Z12: =Devis[[#This Row],[Autres dépenses]] -> 2500 | AA12: =IF(Devis[[#This Row],[Destination des aides]]="Fonctionnement",SUM(Devis[[#This Row],[Salaires]:[Autres dépenses2]]),0) -> 88500 | AB12: =IF(Devis[[#This Row],[Destination des aides]]="Investissement",SUM(Devis[[#This Row],[Salaires]:[Autres dépenses2]],Devis[[#This Row],[Investissements]]),0) -> 0 | AC12: =Devis[[#This Row],[Coûts de fonctionnement]]+Devis[[#This Row],[Coûts d''investissement]] -> 88500 | AD12: =(MATCH(Devis[[#This Row],[Mois de début]]-1,Calendrier[Délais en mois],1)<>MATCH(Devis[[#This Row],[Mois de fin]]-1,Calendrier[Délais en mois],1)) -> FALSE
A13: LOT 2 | C13: 1 | D13: Faisabilité brique techno | E13: ALPHA | F13: 1 | G13: 12 | H13: 2.2 | I13: 6 | J13: 3 | L13: 2500 | M13: 2500 | N13: 2500 | Q13: =IF(Devis[[#This Row],[Investissements]]>0,"Investissement","Fonctionnement") -> Fonctionnement | R13: =INDEX(Partenaires[Type de coûts],MATCH(Devis[[#This Row],[Partenaire]],Partenaires[Nom court],0)) -> Complets | S13: =Devis[[#This Row],[Mois de fin]]-Devis[[#This Row],[Mois de début]]+1 -> 12 | T13: =IFERROR(INDEX(Calendrier[Etapes clés],MATCH(INT((Devis[[#This Row],[Mois de début]]+Devis[[#This Row],[Mois de fin]]+1)/2)-1,Calendrier[Délais en mois],1)+1),"#! Vérifiez l'onglet Calendrier et que le milieu de la tâche tombe bien dans une étape clé") -> EC01 | U13: =IF(Devis[[#This Row],[Destination des aides]]="Fonctionnement",SUM(Devis[[#This Row],[Personne.mois cat 1]:[Personne.mois cat 3]]),0) -> 9 | V13: =SUMPRODUCT(INDEX(Partenaires[[Salaire Cat. 1]:[Salaire Cat. 3]],MATCH(Devis[[#This Row],[Partenaire]],Partenaires[Nom court],0),),Devis[[#This Row],[Personne.mois cat 1]:[Personne.mois cat 3]]) -> 52500 | W13: =20%*Devis[[#This Row],[Salaires]] -> 10500 | X13: =Devis[[#This Row],[Dépenses de sous-traitance H.T.]] -> 2500 | Y13: =Devis[[#This Row],[Contribution aux amortissements]] -> 2500 | Z13: =Devis[[#This Row],[Autres dépenses]] -> 2500 | AA13: =IF(Devis[[#This Row],[Destination des aides]]="Fonctionnement",SUM(Devis[[#This Row],[Salaires]:[Autres dépenses2]]),0) -> 70500 | AB13: =IF(Devis[[#This Row],[Destination des aides]]="Investissement",SUM(Devis[[#This Row],[Salaires]:[Autres dépenses2]],Devis[[#This Row],[Investissements]]),0) -> 0 | AC13: =Devis[[#This Row],[Coûts de fonctionnement]]+Devis[[#This Row],[Coûts d''investissement]] -> 70500 | AD13: =(MATCH(Devis[[#This Row],[Mois de début]]-1,Calendrier[Délais en mois],1)<>MATCH(Devis[[#This Row],[Mois de fin]]-1,Calendrier[Délais en mois],1)) -> FALSE
A14: LOT 2 | C14: 1 | D14: Faisabilité brique techno | E14: BETA | F14: 1 | G14: 12 | H14: 2.3 | I14: 6 | J14: 3 | L14: 2500 | M14: 2500 | N14: 2500 | Q14: =IF(Devis[[#This Row],[Investissements]]>0,"Investissement","Fonctionnement") -> Fonctionnement | R14: =INDEX(Partenaires[Type de coûts],MATCH(Devis[[#This Row],[Partenaire]],Partenaires[Nom court],0)) -> Marginaux | S14: =Devis[[#This Row],[Mois de fin]]-Devis[[#This Row],[Mois de début]]+1 -> 12 | T14: =IFERROR(INDEX(Calendrier[Etapes clés],MATCH(INT((Devis[[#This Row],[Mois de début]]+Devis[[#This Row],[Mois de fin]]+1)/2)-1,Calendrier[Délais en mois],1)+1),"#! Vérifiez l'onglet Calendrier et que le milieu de la tâche tombe bien dans une étape clé") -> EC01 | U14: =IF(Devis[[#This Row],[Destination des aides]]="Fonctionnement",SUM(Devis[[#This Row],[Personne.mois cat 1]:[Personne.mois cat 3]]),0) -> 9 | V14: =SUMPRODUCT(INDEX(Partenaires[[Salaire Cat. 1]:[Salaire Cat. 3]],MATCH(Devis[[#This Row],[Partenaire]],Partenaires[Nom court],0),),Devis[[#This Row],[Personne.mois cat 1]:[Personne.mois cat 3]]) -> 52500 | W14: =20%*Devis[[#This Row],[Salaires]] -> 10500 | X14: =Devis[[#This Row],[Dépenses de sous-traitance H.T.]] -> 2500 | Y14: =Devis[[#This Row],[Contribution aux amortissements]] -> 2500 | Z14: =Devis[[#This Row],[Autres dépenses]] -> 2500 | AA14: =IF(Devis[[#This Row],[Destination des aides]]="Fonctionnement",SUM(Devis[[#This Row],[Salaires]:[Autres dépenses2]]),0) -> 70500 | AB14: =IF(Devis[[#This Row],[Destination des aides]]="Investissement",SUM(Devis[[#This Row],[Salaires]:[Autres dépenses2]],Devis[[#This Row],[Investissements]]),0) -> 0 | AC14: =Devis[[#This Row],[Coûts de fonctionnement]]+Devis[[#This Row],[Coûts d''investissement]] -> 70500 | AD14: =(MATCH(Devis[[#This Row],[Mois de début]]-1,Calendrier[Délais en mois],1)<>MATCH(Devis[[#This Row],[Mois de fin]]-1,Calendrier[Délais en mois],1)) -> FALSE
A15: LOT 2 | C15: 2 | D15: Recherche brique techno | E15: IXE | F15: 13 | G15: 24 | H15: 2.2 | I15: 24 | J15: 12 | K15: 6 | L15: 100000 | M15: 50000 | N15: 20000 | Q15: =IF(Devis[[#This Row],[Investissements]]>0,"Investissement","Fonctionnement") -> Fonctionnement | R15: =INDEX(Partenaires[Type de coûts],MATCH(Devis[[#This Row],[Partenaire]],Partenaires[Nom court],0)) -> Complets | S15: =Devis[[#This Row],[Mois de fin]]-Devis[[#This Row],[Mois de début]]+1 -> 12 | T15: =IFERROR(INDEX(Calendrier[Etapes clés],MATCH(INT((Devis[[#This Row],[Mois de début]]+Devis[[#This Row],[Mois de fin]]+1)/2)-1,Calendrier[Délais en mois],1)+1),"#! Vérifiez l'onglet Calendrier et que le milieu de la tâche tombe bien dans une étape clé") -> EC02 | U15: =IF(Devis[[#This Row],[Destination des aides]]="Fonctionnement",SUM(Devis[[#This Row],[Personne.mois cat 1]:[Personne.mois cat 3]]),0) -> 42 | V15: =SUMPRODUCT(INDEX(Partenaires[[Salaire Cat. 1]:[Salaire Cat. 3]],MATCH(Devis[[#This Row],[Partenaire]],Partenaires[Nom court],0),),Devis[[#This Row],[Personne.mois cat 1]:[Personne.mois cat 3]]) -> 288000 | W15: =20%*Devis[[#This Row],[Salaires]] -> 57600 | X15: =Devis[[#This Row],[Dépenses de sous-traitance H.T.]] -> 100000 | Y15: =Devis[[#This Row],[Contribution aux amortissements]] -> 50000 | Z15: =Devis[[#This Row],[Autres dépenses]] -> 20000 | AA15: =IF(Devis[[#This Row],[Destination des aides]]="Fonctionnement",SUM(Devis[[#This Row],[Salaires]:[Autres dépenses2]]),0) -> 515600 | AB15: =IF(Devis[[#This Row],[Destination des aides]]="Investissement",SUM(Devis[[#This Row],[Salaires]:[Autres dépenses2]],Devis[[#This Row],[Investissements]]),0) -> 0 | AC15: =Devis[[#This Row],[Coûts de fonctionnement]]+Devis[[#This Row],[Coûts d''investissement]] -> 515600 | AD15: =(MATCH(Devis[[#This Row],[Mois de début]]-1,Calendrier[Délais en mois],1)<>MATCH(Devis[[#This Row],[Mois de fin]]-1,Calendrier[Délais en mois],1)) -> FALSE
A16: LOT 2 | C16: 2 | D16: Recherche brique techno | E16: IGREC | F16: 13 | G16: 24 | H16: 2.2 | I16: 12 | J16: 6 | L16: 30000 | M16: 10000 | N16: 10000 | Q16: =IF(Devis[[#This Row],[Investissements]]>0,"Investissement","Fonctionnement") -> Fonctionnement | R16: =INDEX(Partenaires[Type de coûts],MATCH(Devis[[#This Row],[Partenaire]],Partenaires[Nom court],0)) -> Complets | S16: =Devis[[#This Row],[Mois de fin]]-Devis[[#This Row],[Mois de début]]+1 -> 12 | T16: =IFERROR(INDEX(Calendrier[Etapes clés],MATCH(INT((Devis[[#This Row],[Mois de début]]+Devis[[#This Row],[Mois de fin]]+1)/2)-1,Calendrier[Délais en mois],1)+1),"#! Vérifiez l'onglet Calendrier et que le milieu de la tâche tombe bien dans une étape clé") -> EC02 | U16: =IF(Devis[[#This Row],[Destination des aides]]="Fonctionnement",SUM(Devis[[#This Row],[Personne.mois cat 1]:[Personne.mois cat 3]]),0) -> 18 | V16: =SUMPRODUCT(INDEX(Partenaires[[Salaire Cat. 1]:[Salaire Cat. 3]],MATCH(Devis[[#This Row],[Partenaire]],Partenaires[Nom court],0),),Devis[[#This Row],[Personne.mois cat 1]:[Personne.mois cat 3]]) -> 120000 | W16: =20%*Devis[[#This Row],[Salaires]] -> 24000 | X16: =Devis[[#This Row],[Dépenses de sous-traitance H.T.]] -> 30000 | Y16: =Devis[[#This Row],[Contribution aux amortissements]] -> 10000 | Z16: =Devis[[#This Row],[Autres dépenses]] -> 10000 | AA16: =IF(Devis[[#This Row],[Destination des aides]]="Fonctionnement",SUM(Devis[[#This Row],[Salaires]:[Autres dépenses2]]),0) -> 194000 | AB16: =IF(Devis[[#This Row],[Destination des aides]]="Investissement",SUM(Devis[[#This Row],[Salaires]:[Autres dépenses2]],Devis[[#This Row],[Investissements]]),0) -> 0 | AC16: =Devis[[#This Row],[Coûts de fonctionnement]]+Devis[[#This Row],[Coûts d''investissement]] -> 194000 | AD16: =(MATCH(Devis[[#This Row],[Mois de début]]-1,Calendrier[Délais en mois],1)<>MATCH(Devis[[#This Row],[Mois de fin]]-1,Calendrier[Délais en mois],1)) -> FALSE
A17: LOT 2 | C17: 2 | D17: Recherche brique techno | E17: ZED | F17: 13 | G17: 24 | H17: 2.2 | I17: 12 | J17: 6 | L17: 5000 | M17: 5000 | N17: 5000 | Q17: =IF(Devis[[#This Row],[Investissements]]>0,"Investissement","Fonctionnement") -> Fonctionnement | R17: =INDEX(Partenaires[Type de coûts],MATCH(Devis[[#This Row],[Partenaire]],Partenaires[Nom court],0)) -> Complets | S17: =Devis[[#This Row],[Mois de fin]]-Devis[[#This Row],[Mois de début]]+1 -> 12 | T17: =IFERROR(INDEX(Calendrier[Etapes clés],MATCH(INT((Devis[[#This Row],[Mois de début]]+Devis[[#This Row],[Mois de fin]]+1)/2)-1,Calendrier[Délais en mois],1)+1),"#! Vérifiez l'onglet Calendrier et que le milieu de la tâche tombe bien dans une étape clé") -> EC02 | U17: =IF(Devis[[#This Row],[Destination des aides]]="Fonctionnement",SUM(Devis[[#This Row],[Personne.mois cat 1]:[Personne.mois cat 3]]),0) -> 18 | V17: =SUMPRODUCT(INDEX(Partenaires[[Salaire Cat. 1]:[Salaire Cat. 3]],MATCH(Devis[[#This Row],[Partenaire]],Partenaires[Nom court],0),),Devis[[#This Row],[Personne.mois cat 1]:[Personne.mois cat 3]]) -> 135000 | W17: =20%*Devis[[#This Row],[Salaires]] -> 27000 | X17: =Devis[[#This Row],[Dépenses de sous-traitance H.T.]] -> 5000 | Y17: =Devis[[#This Row],[Contribution aux amortissements]] -> 5000 | Z17: =Devis[[#This Row],[Autres dépenses]] -> 5000 | AA17: =IF(Devis[[#This Row],[Destination des aides]]="Fonctionnement",SUM(Devis[[#This Row],[Salaires]:[Autres dépenses2]]),0) -> 177000 | AB17: =IF(Devis[[#This Row],[Destination des aides]]="Investissement",SUM(Devis[[#This Row],[Salaires]:[Autres dépenses2]],Devis[[#This Row],[Investissements]]),0) -> 0 | AC17: =Devis[[#This Row],[Coûts de fonctionnement]]+Devis[[#This Row],[Coûts d''investissement]] -> 177000 | AD17: =(MATCH(Devis[[#This Row],[Mois de début]]-1,Calendrier[Délais en mois],1)<>MATCH(Devis[[#This Row],[Mois de fin]]-1,Calendrier[Délais en mois],1)) -> FALSE
A18: LOT 2 | C18: 2 | D18: Recherche brique techno | E18: ALPHA | F18: 13 | G18: 24 | H18: 2.2 | I18: 12 | N18: 1000 | Q18: =IF(Devis[[#This Row],[Investissements]]>0,"Investissement","Fonctionnement") -> Fonctionnement | R18: =INDEX(Partenaires[Type de coûts],MATCH(Devis[[#This Row],[Partenaire]],Partenaires[Nom court],0)) -> Complets | S18: =Devis[[#This Row],[Mois de fin]]-Devis[[#This Row],[Mois de début]]+1 -> 12 | T18: =IFERROR(INDEX(Calendrier[Etapes clés],MATCH(INT((Devis[[#This Row],[Mois de début]]+Devis[[#This Row],[Mois de fin]]+1)/2)-1,Calendrier[Délais en mois],1)+1),"#! Vérifiez l'onglet Calendrier et que le milieu de la tâche tombe bien dans une étape clé") -> EC02 | U18: =IF(Devis[[#This Row],[Destination des aides]]="Fonctionnement",SUM(Devis[[#This Row],[Personne.mois cat 1]:[Personne.mois cat 3]]),0) -> 12 | V18: =SUMPRODUCT(INDEX(Partenaires[[Salaire Cat. 1]:[Salaire Cat. 3]],MATCH(Devis[[#This Row],[Partenaire]],Partenaires[Nom court],0),),Devis[[#This Row],[Personne.mois cat 1]:[Personne.mois cat 3]]) -> 72000 | W18: =20%*Devis[[#This Row],[Salaires]] -> 14400 | X18: =Devis[[#This Row],[Dépenses de sous-traitance H.T.]] -> 0 | Y18: =Devis[[#This Row],[Contribution aux amortissements]] -> 0 | Z18: =Devis[[#This Row],[Autres dépenses]] -> 1000 | AA18: =IF(Devis[[#This Row],[Destination des aides]]="Fonctionnement",SUM(Devis[[#This Row],[Salaires]:[Autres dépenses2]]),0) -> 87400 | AB18: =IF(Devis[[#This Row],[Destination des aides]]="Investissement",SUM(Devis[[#This Row],[Salaires]:[Autres dépenses2]],Devis[[#This Row],[Investissements]]),0) -> 0 | AC18: =Devis[[#This Row],[Coûts de fonctionnement]]+Devis[[#This Row],[Coûts d''investissement]] -> 87400 | AD18: =(MATCH(Devis[[#This Row],[Mois de début]]-1,Calendrier[Délais en mois],1)<>MATCH(Devis[[#This Row],[Mois de fin]]-1,Calendrier[Délais en mois],1)) -> FALSE
A19: LOT 2 | C19: 2 | D19: Recherche brique techno | E19: BETA | F19: 13 | G19: 24 | H19: 2.2 | I19: 12 | N19: 1000 | Q19: =IF(Devis[[#This Row],[Investissements]]>0,"Investissement","Fonctionnement") -> Fonctionnement | R19: =INDEX(Partenaires[Type de coûts],MATCH(Devis[[#This Row],[Partenaire]],Partenaires[Nom court],0)) -> Marginaux | S19: =Devis[[#This Row],[Mois de fin]]-Devis[[#This Row],[Mois de début]]+1 -> 12 | T19: =IFERROR(INDEX(Calendrier[Etapes clés],MATCH(INT((Devis[[#This Row],[Mois de début]]+Devis[[#This Row],[Mois de fin]]+1)/2)-1,Calendrier[Délais en mois],1)+1),"#! Vérifiez l'onglet Calendrier et que le milieu de la tâche tombe bien dans une étape clé") -> EC02 | U19: =IF(Devis[[#This Row],[Destination des aides]]="Fonctionnement",SUM(Devis[[#This Row],[Personne.mois cat 1]:[Personne.mois cat 3]]),0) -> 12 | V19: =SUMPRODUCT(INDEX(Partenaires[[Salaire Cat. 1]:[Salaire Cat. 3]],MATCH(Devis[[#This Row],[Partenaire]],Partenaires[Nom court],0),),Devis[[#This Row],[Personne.mois cat 1]:[Personne.mois cat 3]]) -> 72000 | W19: =20%*Devis[[#This Row],[Salaires]] -> 14400 | X19: =Devis[[#This Row],[Dépenses de sous-traitance H.T.]] -> 0 | Y19: =Devis[[#This Row],[Contribution aux amortissements]] -> 0 | Z19: =Devis[[#This Row],[Autres dépenses]] -> 1000 | AA19: =IF(Devis[[#This Row],[Destination des aides]]="Fonctionnement",SUM(Devis[[#This Row],[Salaires]:[Autres dépenses2]]),0) -> 87400 | AB19: =IF(Devis[[#This Row],[Destination des aides]]="Investissement",SUM(Devis[[#This Row],[Salaires]:[Autres dépenses2]],Devis[[#This Row],[Investissements]]),0) -> 0 | AC19: =Devis[[#This Row],[Coûts de fonctionnement]]+Devis[[#This Row],[Coûts d''investissement]] -> 87400 | AD19: =(MATCH(Devis[[#This Row],[Mois de début]]-1,Calendrier[Délais en mois],1)<>MATCH(Devis[[#This Row],[Mois de fin]]-1,Calendrier[Délais en mois],1)) -> FALSE
A20: LOT 3 | C20: 3 | D20: Prototype produit A | E20: IXE | F20: 25 | G20: 36 | H20: 3.1 | I20: 48 | J20: 24 | K20: 12 | L20: 200000 | M20: 100000 | N20: 40000 | Q20: =IF(Devis[[#This Row],[Investissements]]>0,"Investissement","Fonctionnement") -> Fonctionnement | R20: =INDEX(Partenaires[Type de coûts],MATCH(Devis[[#This Row],[Partenaire]],Partenaires[Nom court],0)) -> Complets | S20: =Devis[[#This Row],[Mois de fin]]-Devis[[#This Row],[Mois de début]]+1 -> 12 | T20: =IFERROR(INDEX(Calendrier[Etapes clés],MATCH(INT((Devis[[#This Row],[Mois de début]]+Devis[[#This Row],[Mois de fin]]+1)/2)-1,Calendrier[Délais en mois],1)+1),"#! Vérifiez l'onglet Calendrier et que le milieu de la tâche tombe bien dans une étape clé") -> EC03 | U20: =IF(Devis[[#This Row],[Destination des aides]]="Fonctionnement",SUM(Devis[[#This Row],[Personne.mois cat 1]:[Personne.mois cat 3]]),0) -> 84 | V20: =SUMPRODUCT(INDEX(Partenaires[[Salaire Cat. 1]:[Salaire Cat. 3]],MATCH(Devis[[#This Row],[Partenaire]],Partenaires[Nom court],0),),Devis[[#This Row],[Personne.mois cat 1]:[Personne.mois cat 3]]) -> 576000 | W20: =20%*Devis[[#This Row],[Salaires]] -> 115200 | X20: =Devis[[#This Row],[Dépenses de sous-traitance H.T.]] -> 200000 | Y20: =Devis[[#This Row],[Contribution aux amortissements]] -> 100000 | Z20: =Devis[[#This Row],[Autres dépenses]] -> 40000 | AA20: =IF(Devis[[#This Row],[Destination des aides]]="Fonctionnement",SUM(Devis[[#This Row],[Salaires]:[Autres dépenses2]]),0) -> 1031200 | AB20: =IF(Devis[[#This Row],[Destination des aides]]="Investissement",SUM(Devis[[#This Row],[Salaires]:[Autres dépenses2]],Devis[[#This Row],[Investissements]]),0) -> 0 | AC20: =Devis[[#This Row],[Coûts de fonctionnement]]+Devis[[#This Row],[Coûts d''investissement]] -> 1031200 | AD20: =(MATCH(Devis[[#This Row],[Mois de début]]-1,Calendrier[Délais en mois],1)<>MATCH(Devis[[#This Row],[Mois de fin]]-1,Calendrier[Délais en mois],1)) -> FALSE
A21: LOT 3 | C21: 3 | D21: Prototype produit A | E21: IGREC | F21: 25 | G21: 36 | H21: 3.1 | I21: 24 | J21: 12 | L21: 60000 | M21: 20000 | N21: 20000 | Q21: =IF(Devis[[#This Row],[Investissements]]>0,"Investissement","Fonctionnement") -> Fonctionnement | R21: =INDEX(Partenaires[Type de coûts],MATCH(Devis[[#This Row],[Partenaire]],Partenaires[Nom court],0)) -> Complets | S21: =Devis[[#This Row],[Mois de fin]]-Devis[[#This Row],[Mois de début]]+1 -> 12 | T21: =IFERROR(INDEX(Calendrier[Etapes clés],MATCH(INT((Devis[[#This Row],[Mois de début]]+Devis[[#This Row],[Mois de fin]]+1)/2)-1,Calendrier[Délais en mois],1)+1),"#! Vérifiez l'onglet Calendrier et que le milieu de la tâche tombe bien dans une étape clé") -> EC03 | U21: =IF(Devis[[#This Row],[Destination des aides]]="Fonctionnement",SUM(Devis[[#This Row],[Personne.mois cat 1]:[Personne.mois cat 3]]),0) -> 36 | V21: =SUMPRODUCT(INDEX(Partenaires[[Salaire Cat. 1]:[Salaire Cat. 3]],MATCH(Devis[[#This Row],[Partenaire]],Partenaires[Nom court],0),),Devis[[#This Row],[Personne.mois cat 1]:[Personne.mois cat 3]]) -> 240000 | W21: =20%*Devis[[#This Row],[Salaires]] -> 48000 | X21: =Devis[[#This Row],[Dépenses de sous-traitance H.T.]] -> 60000 | Y21: =Devis[[#This Row],[Contribution aux amortissements]] -> 20000 | Z21: =Devis[[#This Row],[Autres dépenses]] -> 20000 | AA21: =IF(Devis[[#This Row],[Destination des aides]]="Fonctionnement",SUM(Devis[[#This Row],[Salaires]:[Autres dépenses2]]),0) -> 388000 | AB21: =IF(Devis[[#This Row],[Destination des aides]]="Investissement",SUM(Devis[[#This Row],[Salaires]:[Autres dépenses2]],Devis[[#This Row],[Investissements]]),0) -> 0 | AC21: =Devis[[#This Row],[Coûts de fonctionnement]]+Devis[[#This Row],[Coûts d''investissement]] -> 388000 | AD21: =(MATCH(Devis[[#This Row],[Mois de début]]-1,Calendrier[Délais en mois],1)<>MATCH(Devis[[#This Row],[Mois de fin]]-1,Calendrier[Délais en mois],1)) -> FALSE
A22: LOT 3 | C22: 3 | D22: Prototype produit A | E22: ZED | F22: 25 | G22: 36 | H22: 3.1 | I22: 24 | J22: 12 | L22: 10000 | M22: 10000 | N22: 10000 | Q22: =IF(Devis[[#This Row],[Investissements]]>0,"Investissement","Fonctionnement") -> Fonctionnement | R22: =INDEX(Partenaires[Type de coûts],MATCH(Devis[[#This Row],[Partenaire]],Partenaires[Nom court],0)) -> Complets | S22: =Devis[[#This Row],[Mois de fin]]-Devis[[#This Row],[Mois de début]]+1 -> 12 | T22: =IFERROR(INDEX(Calendrier[Etapes clés],MATCH(INT((Devis[[#This Row],[Mois de début]]+Devis[[#This Row],[Mois de fin]]+1)/2)-1,Calendrier[Délais en mois],1)+1),"#! Vérifiez l'onglet Calendrier et que le milieu de la tâche tombe bien dans une étape clé") -> EC03 | U22: =IF(Devis[[#This Row],[Destination des aides]]="Fonctionnement",SUM(Devis[[#This Row],[Personne.mois cat 1]:[Personne.mois cat 3]]),0) -> 36 | V22: =SUMPRODUCT(INDEX(Partenaires[[Salaire Cat. 1]:[Salaire Cat. 3]],MATCH(Devis[[#This Row],[Partenaire]],Partenaires[Nom court],0),),Devis[[#This Row],[Personne.mois cat 1]:[Personne.mois cat 3]]) -> 270000 | W22: =20%*Devis[[#This Row],[Salaires]] -> 54000 | X22: =Devis[[#This Row],[Dépenses de sous-traitance H.T.]] -> 10000 | Y22: =Devis[[#This Row],[Contribution aux amortissements]] -> 10000 | Z22: =Devis[[#This Row],[Autres dépenses]] -> 10000 | AA22: =IF(Devis[[#This Row],[Destination des aides]]="Fonctionnement",SUM(Devis[[#This Row],[Salaires]:[Autres dépenses2]]),0) -> 354000 | AB22: =IF(Devis[[#This Row],[Destination des aides]]="Investissement",SUM(Devis[[#This Row],[Salaires]:[Autres dépenses2]],Devis[[#This Row],[Investissements]]),0) -> 0 | AC22: =Devis[[#This Row],[Coûts de fonctionnement]]+Devis[[#This Row],[Coûts d''investissement]] -> 354000 | AD22: =(MATCH(Devis[[#This Row],[Mois de début]]-1,Calendrier[Délais en mois],1)<>MATCH(Devis[[#This Row],[Mois de fin]]-1,Calendrier[Délais en mois],1)) -> FALSE
A23: LOT 3 | C23: 3 | D23: Prototype produit B | E23: IXE | F23: 30 | G23: 36 | H23: 3.2 | I23: 48 | J23: 24 | K23: 12 | L23: 200000 | M23: 100000 | N23: 40000 | Q23: =IF(Devis[[#This Row],[Investissements]]>0,"Investissement","Fonctionnement") -> Fonctionnement | R23: =INDEX(Partenaires[Type de coûts],MATCH(Devis[[#This Row],[Partenaire]],Partenaires[Nom court],0)) -> Complets | S23: =Devis[[#This Row],[Mois de fin]]-Devis[[#This Row],[Mois de début]]+1 -> 7 | T23: =IFERROR(INDEX(Calendrier[Etapes clés],MATCH(INT((Devis[[#This Row],[Mois de début]]+Devis[[#This Row],[Mois de fin]]+1)/2)-1,Calendrier[Délais en mois],1)+1),"#! Vérifiez l'onglet Calendrier et que le milieu de la tâche tombe bien dans une étape clé") -> EC03 | U23: =IF(Devis[[#This Row],[Destination des aides]]="Fonctionnement",SUM(Devis[[#This Row],[Personne.mois cat 1]:[Personne.mois cat 3]]),0) -> 84 | V23: =SUMPRODUCT(INDEX(Partenaires[[Salaire Cat. 1]:[Salaire Cat. 3]],MATCH(Devis[[#This Row],[Partenaire]],Partenaires[Nom court],0),),Devis[[#This Row],[Personne.mois cat 1]:[Personne.mois cat 3]]) -> 576000 | W23: =20%*Devis[[#This Row],[Salaires]] -> 115200 | X23: =Devis[[#This Row],[Dépenses de sous-traitance H.T.]] -> 200000 | Y23: =Devis[[#This Row],[Contribution aux amortissements]] -> 100000 | Z23: =Devis[[#This Row],[Autres dépenses]] -> 40000 | AA23: =IF(Devis[[#This Row],[Destination des aides]]="Fonctionnement",SUM(Devis[[#This Row],[Salaires]:[Autres dépenses2]]),0) -> 1031200 | AB23: =IF(Devis[[#This Row],[Destination des aides]]="Investissement",SUM(Devis[[#This Row],[Salaires]:[Autres dépenses2]],Devis[[#This Row],[Investissements]]),0) -> 0 | AC23: =Devis[[#This Row],[Coûts de fonctionnement]]+Devis[[#This Row],[Coûts d''investissement]] -> 1031200 | AD23: =(MATCH(Devis[[#This Row],[Mois de début]]-1,Calendrier[Délais en mois],1)<>MATCH(Devis[[#This Row],[Mois de fin]]-1,Calendrier[Délais en mois],1)) -> FALSE
A24: LOT 3 | C24: 3 | D24: Prototype produit B | E24: IGREC | F24: 30 | G24: 36 | H24: 3.2 | I24: 24 | J24: 12 | L24: 60000 | M24: 20000 | N24: 20000 | Q24: =IF(Devis[[#This Row],[Investissements]]>0,"Investissement","Fonctionnement") -> Fonctionnement | R24: =INDEX(Partenaires[Type de coûts],MATCH(Devis[[#This Row],[Partenaire]],Partenaires[Nom court],0)) -> Complets | S24: =Devis[[#This Row],[Mois de fin]]-Devis[[#This Row],[Mois de début]]+1 -> 7 | T24: =IFERROR(INDEX(Calendrier[Etapes clés],MATCH(INT((Devis[[#This Row],[Mois de début]]+Devis[[#This Row],[Mois de fin]]+1)/2)-1,Calendrier[Délais en mois],1)+1),"#! Vérifiez l'onglet Calendrier et que le milieu de la tâche tombe bien dans une étape clé") -> EC03 | U24: =IF(Devis[[#This Row],[Destination des aides]]="Fonctionnement",SUM(Devis[[#This Row],[Personne.mois cat 1]:[Personne.mois cat 3]]),0) -> 36 | V24: =SUMPRODUCT(INDEX(Partenaires[[Salaire Cat. 1]:[Salaire Cat. 3]],MATCH(Devis[[#This Row],[Partenaire]],Partenaires[Nom court],0),),Devis[[#This Row],[Personne.mois cat 1]:[Personne.mois cat 3]]) -> 240000 | W24: =20%*Devis[[#This Row],[Salaires]] -> 48000 | X24: =Devis[[#This Row],[Dépenses de sous-traitance H.T.]] -> 60000 | Y24: =Devis[[#This Row],[Contribution aux amortissements]] -> 20000 | Z24: =Devis[[#This Row],[Autres dépenses]] -> 20000 | AA24: =IF(Devis[[#This Row],[Destination des aides]]="Fonctionnement",SUM(Devis[[#This Row],[Salaires]:[Autres dépenses2]]),0) -> 388000 | AB24: =IF(Devis[[#This Row],[Destination des aides]]="Investissement",SUM(Devis[[#This Row],[Salaires]:[Autres dépenses2]],Devis[[#This Row],[Investissements]]),0) -> 0 | AC24: =Devis[[#This Row],[Coûts de fonctionnement]]+Devis[[#This Row],[Coûts d''investissement]] -> 388000 | AD24: =(MATCH(Devis[[#This Row],[Mois de début]]-1,Calendrier[Délais en mois],1)<>MATCH(Devis[[#This Row],[Mois de fin]]-1,Calendrier[Délais en mois],1)) -> FALSE
A25: LOT 3 | C25: 3 | D25: Prototype produit B | E25: ZED | F25: 30 | G25: 36 | H25: 3.2 | I25: 24 | J25: 12 | L25: 10000 | M25: 10000 | N25: 10000 | Q25: =IF(Devis[[#This Row],[Investissements]]>0,"Investissement","Fonctionnement") -> Fonctionnement | R25: =INDEX(Partenaires[Type de coûts],MATCH(Devis[[#This Row],[Partenaire]],Partenaires[Nom court],0)) -> Complets | S25: =Devis[[#This Row],[Mois de fin]]-Devis[[#This Row],[Mois de début]]+1 -> 7 | T25: =IFERROR(INDEX(Calendrier[Etapes clés],MATCH(INT((Devis[[#This Row],[Mois de début]]+Devis[[#This Row],[Mois de fin]]+1)/2)-1,Calendrier[Délais en mois],1)+1),"#! Vérifiez l'onglet Calendrier et que le milieu de la tâche tombe bien dans une étape clé") -> EC03 | U25: =IF(Devis[[#This Row],[Destination des aides]]="Fonctionnement",SUM(Devis[[#This Row],[Personne.mois cat 1]:[Personne.mois cat 3]]),0) -> 36 | V25: =SUMPRODUCT(INDEX(Partenaires[[Salaire Cat. 1]:[Salaire Cat. 3]],MATCH(Devis[[#This Row],[Partenaire]],Partenaires[Nom court],0),),Devis[[#This Row],[Personne.mois cat 1]:[Personne.mois cat 3]]) -> 270000 | W25: =20%*Devis[[#This Row],[Salaires]] -> 54000 | X25: =Devis[[#This Row],[Dépenses de sous-traitance H.T.]] -> 10000 | Y25: =Devis[[#This Row],[Contribution aux amortissements]] -> 10000 | Z25: =Devis[[#This Row],[Autres dépenses]] -> 10000 | AA25: =IF(Devis[[#This Row],[Destination des aides]]="Fonctionnement",SUM(Devis[[#This Row],[Salaires]:[Autres dépenses2]]),0) -> 354000 | AB25: =IF(Devis[[#This Row],[Destination des aides]]="Investissement",SUM(Devis[[#This Row],[Salaires]:[Autres dépenses2]],Devis[[#This Row],[Investissements]]),0) -> 0 | AC25: =Devis[[#This Row],[Coûts de fonctionnement]]+Devis[[#This Row],[Coûts d''investissement]] -> 354000 | AD25: =(MATCH(Devis[[#This Row],[Mois de début]]-1,Calendrier[Délais en mois],1)<>MATCH(Devis[[#This Row],[Mois de fin]]-1,Calendrier[Délais en mois],1)) -> FALSE
A26: LOT 4 | C26: 1 | D26: Innovation procédé fabrication | E26: IXE | F26: 1 | G26: 12 | H26: 4.1 | I26: 12 | J26: 6 | K26: 3 | L26: 50000 | M26: 25000 | N26: 10000 | Q26: =IF(Devis[[#This Row],[Investissements]]>0,"Investissement","Fonctionnement") -> Fonctionnement | R26: =INDEX(Partenaires[Type de coûts],MATCH(Devis[[#This Row],[Partenaire]],Partenaires[Nom court],0)) -> Complets | S26: =Devis[[#This Row],[Mois de fin]]-Devis[[#This Row],[Mois de début]]+1 -> 12 | T26: =IFERROR(INDEX(Calendrier[Etapes clés],MATCH(INT((Devis[[#This Row],[Mois de début]]+Devis[[#This Row],[Mois de fin]]+1)/2)-1,Calendrier[Délais en mois],1)+1),"#! Vérifiez l'onglet Calendrier et que le milieu de la tâche tombe bien dans une étape clé") -> EC01 | U26: =IF(Devis[[#This Row],[Destination des aides]]="Fonctionnement",SUM(Devis[[#This Row],[Personne.mois cat 1]:[Personne.mois cat 3]]),0) -> 21 | V26: =SUMPRODUCT(INDEX(Partenaires[[Salaire Cat. 1]:[Salaire Cat. 3]],MATCH(Devis[[#This Row],[Partenaire]],Partenaires[Nom court],0),),Devis[[#This Row],[Personne.mois cat 1]:[Personne.mois cat 3]]) -> 144000 | W26: =20%*Devis[[#This Row],[Salaires]] -> 28800 | X26: =Devis[[#This Row],[Dépenses de sous-traitance H.T.]] -> 50000 | Y26: =Devis[[#This Row],[Contribution aux amortissements]] -> 25000 | Z26: =Devis[[#This Row],[Autres dépenses]] -> 10000 | AA26: =IF(Devis[[#This Row],[Destination des aides]]="Fonctionnement",SUM(Devis[[#This Row],[Salaires]:[Autres dépenses2]]),0) -> 257800 | AB26: =IF(Devis[[#This Row],[Destination des aides]]="Investissement",SUM(Devis[[#This Row],[Salaires]:[Autres dépenses2]],Devis[[#This Row],[Investissements]]),0) -> 0 | AC26: =Devis[[#This Row],[Coûts de fonctionnement]]+Devis[[#This Row],[Coûts d''investissement]] -> 257800 | AD26: =(MATCH(Devis[[#This Row],[Mois de début]]-1,Calendrier[Délais en mois],1)<>MATCH(Devis[[#This Row],[Mois de fin]]-1,Calendrier[Délais en mois],1)) -> FALSE
A27: LOT 4 | C27: 1 | D27: Innovation procédé fabrication | E27: IGREC | F27: 1 | G27: 12 | H27: 4.1 | I27: 6 | J27: 3 | L27: 15000 | M27: 5000 | N27: 5000 | Q27: =IF(Devis[[#This Row],[Investissements]]>0,"Investissement","Fonctionnement") -> Fonctionnement | R27: =INDEX(Partenaires[Type de coûts],MATCH(Devis[[#This Row],[Partenaire]],Partenaires[Nom court],0)) -> Complets | S27: =Devis[[#This Row],[Mois de fin]]-Devis[[#This Row],[Mois de début]]+1 -> 12 | T27: =IFERROR(INDEX(Calendrier[Etapes clés],MATCH(INT((Devis[[#This Row],[Mois de début]]+Devis[[#This Row],[Mois de fin]]+1)/2)-1,Calendrier[Délais en mois],1)+1),"#! Vérifiez l'onglet Calendrier et que le milieu de la tâche tombe bien dans une étape clé") -> EC01 | U27: =IF(Devis[[#This Row],[Destination des aides]]="Fonctionnement",SUM(Devis[[#This Row],[Personne.mois cat 1]:[Personne.mois cat 3]]),0) -> 9 | V27: =SUMPRODUCT(INDEX(Partenaires[[Salaire Cat. 1]:[Salaire Cat. 3]],MATCH(Devis[[#This Row],[Partenaire]],Partenaires[Nom court],0),),Devis[[#This Row],[Personne.mois cat 1]:[Personne.mois cat 3]]) -> 60000 | W27: =20%*Devis[[#This Row],[Salaires]] -> 12000 | X27: =Devis[[#This Row],[Dépenses de sous-traitance H.T.]] -> 15000 | Y27: =Devis[[#This Row],[Contribution aux amortissements]] -> 5000 | Z27: =Devis[[#This Row],[Autres dépenses]] -> 5000 | AA27: =IF(Devis[[#This Row],[Destination des aides]]="Fonctionnement",SUM(Devis[[#This Row],[Salaires]:[Autres dépenses2]]),0) -> 97000 | AB27: =IF(Devis[[#This Row],[Destination des aides]]="Investissement",SUM(Devis[[#This Row],[Salaires]:[Autres dépenses2]],Devis[[#This Row],[Investissements]]),0) -> 0 | AC27: =Devis[[#This Row],[Coûts de fonctionnement]]+Devis[[#This Row],[Coûts d''investissement]] -> 97000 | AD27: =(MATCH(Devis[[#This Row],[Mois de début]]-1,Calendrier[Délais en mois],1)<>MATCH(Devis[[#This Row],[Mois de fin]]-1,Calendrier[Délais en mois],1)) -> FALSE
A28: LOT 4 | C28: 2 | D28: Détachement de personnel de ZED chez IXE | E28: IXE | F28: 13 | G28: 24 | H28: 4.2 | L28: 100000 | Q28: =IF(Devis[[#This Row],[Investissements]]>0,"Investissement","Fonctionnement") -> Fonctionnement | R28: =INDEX(Partenaires[Type de coûts],MATCH(Devis[[#This Row],[Partenaire]],Partenaires[Nom court],0)) -> Complets | S28: =Devis[[#This Row],[Mois de fin]]-Devis[[#This Row],[Mois de début]]+1 -> 12 | T28: =IFERROR(INDEX(Calendrier[Etapes clés],MATCH(INT((Devis[[#This Row],[Mois de début]]+Devis[[#This Row],[Mois de fin]]+1)/2)-1,Calendrier[Délais en mois],1)+1),"#! Vérifiez l'onglet Calendrier et que le milieu de la tâche tombe bien dans une étape clé") -> EC02 | U28: =IF(Devis[[#This Row],[Destination des aides]]="Fonctionnement",SUM(Devis[[#This Row],[Personne.mois cat 1]:[Personne.mois cat 3]]),0) -> 0 | V28: =SUMPRODUCT(INDEX(Partenaires[[Salaire Cat. 1]:[Salaire Cat. 3]],MATCH(Devis[[#This Row],[Partenaire]],Partenaires[Nom court],0),),Devis[[#This Row],[Personne.mois cat 1]:[Personne.mois cat 3]]) -> 0 | W28: =20%*Devis[[#This Row],[Salaires]] -> 0 | X28: =Devis[[#This Row],[Dépenses de sous-traitance H.T.]] -> 100000 | Y28: =Devis[[#This Row],[Contribution aux amortissements]] -> 0 | Z28: =Devis[[#This Row],[Autres dépenses]] -> 0 | AA28: =IF(Devis[[#This Row],[Destination des aides]]="Fonctionnement",SUM(Devis[[#This Row],[Salaires]:[Autres dépenses2]]),0) -> 100000 | AB28: =IF(Devis[[#This Row],[Destination des aides]]="Investissement",SUM(Devis[[#This Row],[Salaires]:[Autres dépenses2]],Devis[[#This Row],[Investissements]]),0) -> 0 | AC28: =Devis[[#This Row],[Coûts de fonctionnement]]+Devis[[#This Row],[Coûts d''investissement]] -> 100000 | AD28: =(MATCH(Devis[[#This Row],[Mois de début]]-1,Calendrier[Délais en mois],1)<>MATCH(Devis[[#This Row],[Mois de fin]]-1,Calendrier[Délais en mois],1)) -> FALSE
A29: LOT 4 | C29: 2 | D29: Détachement de personnel de ZED chez IGREC | E29: IGREC | F29: 13 | G29: 24 | H29: 4.3 | L29: 30000 | Q29: =IF(Devis[[#This Row],[Investissements]]>0,"Investissement","Fonctionnement") -> Fonctionnement | R29: =INDEX(Partenaires[Type de coûts],MATCH(Devis[[#This Row],[Partenaire]],Partenaires[Nom court],0)) -> Complets | S29: =Devis[[#This Row],[Mois de fin]]-Devis[[#This Row],[Mois de début]]+1 -> 12 | T29: =IFERROR(INDEX(Calendrier[Etapes clés],MATCH(INT((Devis[[#This Row],[Mois de début]]+Devis[[#This Row],[Mois de fin]]+1)/2)-1,Calendrier[Délais en mois],1)+1),"#! Vérifiez l'onglet Calendrier et que le milieu de la tâche tombe bien dans une étape clé") -> EC02 | U29: =IF(Devis[[#This Row],[Destination des aides]]="Fonctionnement",SUM(Devis[[#This Row],[Personne.mois cat 1]:[Personne.mois cat 3]]),0) -> 0 | V29: =SUMPRODUCT(INDEX(Partenaires[[Salaire Cat. 1]:[Salaire Cat. 3]],MATCH(Devis[[#This Row],[Partenaire]],Partenaires[Nom court],0),),Devis[[#This Row],[Personne.mois cat 1]:[Personne.mois cat 3]]) -> 0 | W29: =20%*Devis[[#This Row],[Salaires]] -> 0 | X29: =Devis[[#This Row],[Dépenses de sous-traitance H.T.]] -> 30000 | Y29: =Devis[[#This Row],[Contribution aux amortissements]] -> 0 | Z29: =Devis[[#This Row],[Autres dépenses]] -> 0 | AA29: =IF(Devis[[#This Row],[Destination des aides]]="Fonctionnement",SUM(Devis[[#This Row],[Salaires]:[Autres dépenses2]]),0) -> 30000 | AB29: =IF(Devis[[#This Row],[Destination des aides]]="Investissement",SUM(Devis[[#This Row],[Salaires]:[Autres dépenses2]],Devis[[#This Row],[Investissements]]),0) -> 0 | AC29: =Devis[[#This Row],[Coûts de fonctionnement]]+Devis[[#This Row],[Coûts d''investissement]] -> 30000 | AD29: =(MATCH(Devis[[#This Row],[Mois de début]]-1,Calendrier[Délais en mois],1)<>MATCH(Devis[[#This Row],[Mois de fin]]-1,Calendrier[Délais en mois],1)) -> FALSE
A30: LOT 5 | C30: 1 | D30: Investissement four | E30: IXE | F30: 25 | G30: 36 | H30: 5.1 | I30: 6 | J30: 3 | O30: 250000 | Q30: =IF(Devis[[#This Row],[Investissements]]>0,"Investissement","Fonctionnement") -> Investissement | R30: =INDEX(Partenaires[Type de coûts],MATCH(Devis[[#This Row],[Partenaire]],Partenaires[Nom court],0)) -> Complets | S30: =Devis[[#This Row],[Mois de fin]]-Devis[[#This Row],[Mois de début]]+1 -> 12 | T30: =IFERROR(INDEX(Calendrier[Etapes clés],MATCH(INT((Devis[[#This Row],[Mois de début]]+Devis[[#This Row],[Mois de fin]]+1)/2)-1,Calendrier[Délais en mois],1)+1),"#! Vérifiez l'onglet Calendrier et que le milieu de la tâche tombe bien dans une étape clé") -> EC03 | U30: =IF(Devis[[#This Row],[Destination des aides]]="Fonctionnement",SUM(Devis[[#This Row],[Personne.mois cat 1]:[Personne.mois cat 3]]),0) -> 0 | V30: =SUMPRODUCT(INDEX(Partenaires[[Salaire Cat. 1]:[Salaire Cat. 3]],MATCH(Devis[[#This Row],[Partenaire]],Partenaires[Nom court],0),),Devis[[#This Row],[Personne.mois cat 1]:[Personne.mois cat 3]]) -> 66000 | W30: =20%*Devis[[#This Row],[Salaires]] -> 13200 | X30: =Devis[[#This Row],[Dépenses de sous-traitance H.T.]] -> 0 | Y30: =Devis[[#This Row],[Contribution aux amortissements]] -> 0 | Z30: =Devis[[#This Row],[Autres dépenses]] -> 0 | AA30: =IF(Devis[[#This Row],[Destination des aides]]="Fonctionnement",SUM(Devis[[#This Row],[Salaires]:[Autres dépenses2]]),0) -> 0 | AB30: =IF(Devis[[#This Row],[Destination des aides]]="Investissement",SUM(Devis[[#This Row],[Salaires]:[Autres dépenses2]],Devis[[#This Row],[Investissements]]),0) -> 329200 | AC30: =Devis[[#This Row],[Coûts de fonctionnement]]+Devis[[#This Row],[Coûts d''investissement]] -> 329200 | AD30: =(MATCH(Devis[[#This Row],[Mois de début]]-1,Calendrier[Délais en mois],1)<>MATCH(Devis[[#This Row],[Mois de fin]]-1,Calendrier[Délais en mois],1)) -> FALSE
A31: LOT 5 | C31: 2 | D31: Investissement laser | E31: IGREC | F31: 25 | G31: 36 | H31: 5.2 | I31: 2 | J31: 2 | K31: 2 | L31: 10000 | O31: 700000 | Q31: =IF(Devis[[#This Row],[Investissements]]>0,"Investissement","Fonctionnement") -> Investissement | R31: =INDEX(Partenaires[Type de coûts],MATCH(Devis[[#This Row],[Partenaire]],Partenaires[Nom court],0)) -> Complets | S31: =Devis[[#This Row],[Mois de fin]]-Devis[[#This Row],[Mois de début]]+1 -> 12 | T31: =IFERROR(INDEX(Calendrier[Etapes clés],MATCH(INT((Devis[[#This Row],[Mois de début]]+Devis[[#This Row],[Mois de fin]]+1)/2)-1,Calendrier[Délais en mois],1)+1),"#! Vérifiez l'onglet Calendrier et que le milieu de la tâche tombe bien dans une étape clé") -> EC03 | U31: =IF(Devis[[#This Row],[Destination des aides]]="Fonctionnement",SUM(Devis[[#This Row],[Personne.mois cat 1]:[Personne.mois cat 3]]),0) -> 0 | V31: =SUMPRODUCT(INDEX(Partenaires[[Salaire Cat. 1]:[Salaire Cat. 3]],MATCH(Devis[[#This Row],[Partenaire]],Partenaires[Nom court],0),),Devis[[#This Row],[Personne.mois cat 1]:[Personne.mois cat 3]]) -> 32000 | W31: =20%*Devis[[#This Row],[Salaires]] -> 6400 | X31: =Devis[[#This Row],[Dépenses de sous-traitance H.T.]] -> 10000 | Y31: =Devis[[#This Row],[Contribution aux amortissements]] -> 0 | Z31: =Devis[[#This Row],[Autres dépenses]] -> 0 | AA31: =IF(Devis[[#This Row],[Destination des aides]]="Fonctionnement",SUM(Devis[[#This Row],[Salaires]:[Autres dépenses2]]),0) -> 0 | AB31: =IF(Devis[[#This Row],[Destination des aides]]="Investissement",SUM(Devis[[#This Row],[Salaires]:[Autres dépenses2]],Devis[[#This Row],[Investissements]]),0) -> 748400 | AC31: =Devis[[#This Row],[Coûts de fonctionnement]]+Devis[[#This Row],[Coûts d''investissement]] -> 748400 | AD31: =(MATCH(Devis[[#This Row],[Mois de début]]-1,Calendrier[Délais en mois],1)<>MATCH(Devis[[#This Row],[Mois de fin]]-1,Calendrier[Délais en mois],1)) -> FALSE
A32: LOT 6 | C32: 1 | D32: Foire DRUPA | E32: IXE | F32: 25 | G32: 36 | H32: 6.1 | I32: 12 | L32: 25000 | N32: 5000 | Q32: =IF(Devis[[#This Row],[Investissements]]>0,"Investissement","Fonctionnement") -> Fonctionnement | R32: =INDEX(Partenaires[Type de coûts],MATCH(Devis[[#This Row],[Partenaire]],Partenaires[Nom court],0)) -> Complets | S32: =Devis[[#This Row],[Mois de fin]]-Devis[[#This Row],[Mois de début]]+1 -> 12 | T32: =IFERROR(INDEX(Calendrier[Etapes clés],MATCH(INT((Devis[[#This Row],[Mois de début]]+Devis[[#This Row],[Mois de fin]]+1)/2)-1,Calendrier[Délais en mois],1)+1),"#! Vérifiez l'onglet Calendrier et que le milieu de la tâche tombe bien dans une étape clé") -> EC03 | U32: =IF(Devis[[#This Row],[Destination des aides]]="Fonctionnement",SUM(Devis[[#This Row],[Personne.mois cat 1]:[Personne.mois cat 3]]),0) -> 12 | V32: =SUMPRODUCT(INDEX(Partenaires[[Salaire Cat. 1]:[Salaire Cat. 3]],MATCH(Devis[[#This Row],[Partenaire]],Partenaires[Nom court],0),),Devis[[#This Row],[Personne.mois cat 1]:[Personne.mois cat 3]]) -> 96000 | W32: =20%*Devis[[#This Row],[Salaires]] -> 19200 | X32: =Devis[[#This Row],[Dépenses de sous-traitance H.T.]] -> 25000 | Y32: =Devis[[#This Row],[Contribution aux amortissements]] -> 0 | Z32: =Devis[[#This Row],[Autres dépenses]] -> 5000 | AA32: =IF(Devis[[#This Row],[Destination des aides]]="Fonctionnement",SUM(Devis[[#This Row],[Salaires]:[Autres dépenses2]]),0) -> 145200 | AB32: =IF(Devis[[#This Row],[Destination des aides]]="Investissement",SUM(Devis[[#This Row],[Salaires]:[Autres dépenses2]],Devis[[#This Row],[Investissements]]),0) -> 0 | AC32: =Devis[[#This Row],[Coûts de fonctionnement]]+Devis[[#This Row],[Coûts d''investissement]] -> 145200 | AD32: =(MATCH(Devis[[#This Row],[Mois de début]]-1,Calendrier[Délais en mois],1)<>MATCH(Devis[[#This Row],[Mois de fin]]-1,Calendrier[Délais en mois],1)) -> FALSE
A33: LOT 6 | C33: 2 | D33: Foire SITL | E33: IGREC | F33: 18 | G33: 36 | H33: 6.2 | I33: 12 | L33: 30000 | N33: 10000 | Q33: =IF(Devis[[#This Row],[Investissements]]>0,"Investissement","Fonctionnement") -> Fonctionnement | R33: =INDEX(Partenaires[Type de coûts],MATCH(Devis[[#This Row],[Partenaire]],Partenaires[Nom court],0)) -> Complets | S33: =Devis[[#This Row],[Mois de fin]]-Devis[[#This Row],[Mois de début]]+1 -> 19 | T33: =IFERROR(INDEX(Calendrier[Etapes clés],MATCH(INT((Devis[[#This Row],[Mois de début]]+Devis[[#This Row],[Mois de fin]]+1)/2)-1,Calendrier[Délais en mois],1)+1),"#! Vérifiez l'onglet Calendrier et que le milieu de la tâche tombe bien dans une étape clé") -> EC03 | U33: =IF(Devis[[#This Row],[Destination des aides]]="Fonctionnement",SUM(Devis[[#This Row],[Personne.mois cat 1]:[Personne.mois cat 3]]),0) -> 12 | V33: =SUMPRODUCT(INDEX(Partenaires[[Salaire Cat. 1]:[Salaire Cat. 3]],MATCH(Devis[[#This Row],[Partenaire]],Partenaires[Nom court],0),),Devis[[#This Row],[Personne.mois cat 1]:[Personne.mois cat 3]]) -> 90000 | W33: =20%*Devis[[#This Row],[Salaires]] -> 18000 | X33: =Devis[[#This Row],[Dépenses de sous-traitance H.T.]] -> 30000 | Y33: =Devis[[#This Row],[Contribution aux amortissements]] -> 0 | Z33: =Devis[[#This Row],[Autres dépenses]] -> 10000 | AA33: =IF(Devis[[#This Row],[Destination des aides]]="Fonctionnement",SUM(Devis[[#This Row],[Salaires]:[Autres dépenses2]]),0) -> 148000 | AB33: =IF(Devis[[#This Row],[Destination des aides]]="Investissement",SUM(Devis[[#This Row],[Salaires]:[Autres dépenses2]],Devis[[#This Row],[Investissements]]),0) -> 0 | AC33: =Devis[[#This Row],[Coûts de fonctionnement]]+Devis[[#This Row],[Coûts d''investissement]] -> 148000 | AD33: =(MATCH(Devis[[#This Row],[Mois de début]]-1,Calendrier[Délais en mois],1)<>MATCH(Devis[[#This Row],[Mois de fin]]-1,Calendrier[Délais en mois],1)) -> TRUE
A34: LOT 6 | C34: 3 | D34: Test tâche 1 mois fin calendrier | E34: IGREC | F34: 36 | G34: 36 | H34: 6.3 | I34: 5 | L34: 1000 | Q34: =IF(Devis[[#This Row],[Investissements]]>0,"Investissement","Fonctionnement") -> Fonctionnement | R34: =INDEX(Partenaires[Type de coûts],MATCH(Devis[[#This Row],[Partenaire]],Partenaires[Nom court],0)) -> Complets | S34: =Devis[[#This Row],[Mois de fin]]-Devis[[#This Row],[Mois de début]]+1 -> 1 | T34: =IFERROR(INDEX(Calendrier[Etapes clés],MATCH(INT((Devis[[#This Row],[Mois de début]]+Devis[[#This Row],[Mois de fin]]+1)/2)-1,Calendrier[Délais en mois],1)+1),"#! Vérifiez l'onglet Calendrier et que le milieu de la tâche tombe bien dans une étape clé") -> EC03 | U34: =IF(Devis[[#This Row],[Destination des aides]]="Fonctionnement",SUM(Devis[[#This Row],[Personne.mois cat 1]:[Personne.mois cat 3]]),0) -> 5 | V34: =SUMPRODUCT(INDEX(Partenaires[[Salaire Cat. 1]:[Salaire Cat. 3]],MATCH(Devis[[#This Row],[Partenaire]],Partenaires[Nom court],0),),Devis[[#This Row],[Personne.mois cat 1]:[Personne.mois cat 3]]) -> 37500 | W34: =20%*Devis[[#This Row],[Salaires]] -> 7500 | X34: =Devis[[#This Row],[Dépenses de sous-traitance H.T.]] -> 1000 | Y34: =Devis[[#This Row],[Contribution aux amortissements]] -> 0 | Z34: =Devis[[#This Row],[Autres dépenses]] -> 0 | AA34: =IF(Devis[[#This Row],[Destination des aides]]="Fonctionnement",SUM(Devis[[#This Row],[Salaires]:[Autres dépenses2]]),0) -> 46000 | AB34: =IF(Devis[[#This Row],[Destination des aides]]="Investissement",SUM(Devis[[#This Row],[Salaires]:[Autres dépenses2]],Devis[[#This Row],[Investissements]]),0) -> 0 | AC34: =Devis[[#This Row],[Coûts de fonctionnement]]+Devis[[#This Row],[Coûts d''investissement]] -> 46000 | AD34: =(MATCH(Devis[[#This Row],[Mois de début]]-1,Calendrier[Délais en mois],1)<>MATCH(Devis[[#This Row],[Mois de fin]]-1,Calendrier[Délais en mois],1)) -> FALSE
A35: Total | D35: =SUMPRODUCT(1/COUNTIF(Devis[Intitulé de la tache ou de l''investissement],Devis[Intitulé de la tache ou de l''investissement])) -> 13 | E35: =SUMPRODUCT(1/COUNTIF(Devis[Partenaire],Devis[Partenaire])) -> 5 | H35: =SUMPRODUCT(1/COUNTIF(Devis[Livrable],Devis[Livrable])) -> 16 | I35: =SUBTOTAL(109,Devis[Personne.mois cat 1]) -> 358 | J35: =SUBTOTAL(109,Devis[Personne.mois cat 2]) -> 152 | K35: =SUBTOTAL(109,Devis[Personne.mois cat 3]) -> 38 | L35: =SUBTOTAL(109,Devis[Dépenses de sous-traitance H.T.]) -> 1008500 | M35: =SUBTOTAL(109,Devis[Contribution aux amortissements]) -> 392500 | N35: =SUBTOTAL(109,Devis[Autres dépenses]) -> 232500 | O35: =SUBTOTAL(109,Devis[Investissements]) -> 950000 | U35: =SUBTOTAL(109,Devis[Total pers.mois présentés]) -> 533 | V35: =SUBTOTAL(109,Devis[Salaires]) -> 3785000 | W35: =SUBTOTAL(109,Devis[Frais généraux]) -> 757000 | X35: =SUBTOTAL(105,Devis[Sous-traitance]) -> 0 | Y35: =SUBTOTAL(109,Devis[Dotations aux amortissements]) -> 392500 | Z35: =SUBTOTAL(109,Devis[Autres dépenses2]) -> 232500 | AA35: =SUBTOTAL(109,Devis[Coûts de fonctionnement]) -> 6047900 | AB35: =SUBTOTAL(109,Devis[Coûts d''investissement]) -> 1077600 | AC35: =SUBTOTAL(109,Devis[Coûts totaux]) -> 7125500

Sheet Devis_prorata_temporis
B5: zone de saisie | E5: zone de saisie | H5: zone de saisie | K5: zone de saisie | N5: zone de saisie | P5: Colonnes calculées, ne rien modifier | R5: Colonnes calculées, ne rien modifier | T5: Colonnes calculées, ne rien modifier | W5: Colonnes calculées, ne rien modifier | Z5: Colonnes calculées, ne rien modifier
A6: Lot | B6: Sous-lot (facultatif) | C6: Tache | D6: Intitulé de la tache ou de l'investissement | E6: Partenaire | F6: Mois de début | G6: Mois de fin | H6: Livrable | I6: Personne.mois cat 1 | J6: Personne.mois cat 2 | K6: Personne.mois cat 3 | L6: Dépenses de sous-traitance H.T. | M6: Contribution aux amortissements | N6: Autres dépenses | O6: Investissements | P6: Destination des aides | Q6: Type de coûts | R6: Durée | S6: Etape-clef | T6: Total pers.mois présentés | U6: Salaires | V6: Frais généraux | W6: Sous-traitance | X6: Dotations aux amortissements | Y6: Autres dépenses2 | Z6: Coûts de fonctionnement | AA6: Coûts d'investissement | AB6: Coûts totaux | AC6: Tâche couvrant plusieurs EC
A7: LOT 1 | C7: 1 | D7: Gestion de projet | E7: IXE | F7: 1 | G7: 12 | H7: 1.1 | I7: 1 | N7: 1000 | P7: =IF(Prorata_temporis[[#This Row],[Investissements]]>0,"Investissement","Fonctionnement") -> Fonctionnement | Q7: =INDEX(Partenaires[Type de coûts],MATCH(Prorata_temporis[[#This Row],[Partenaire]],Partenaires[Nom court],0)) -> Complets | R7: =Prorata_temporis[[#This Row],[Mois de fin]]-Prorata_temporis[[#This Row],[Mois de début]]+1 -> 12 | S7: =IFERROR(INDEX(Calendrier[Etapes clés],MATCH(INT((Prorata_temporis[[#This Row],[Mois de début]]+Prorata_temporis[[#This Row],[Mois de fin]]+1)/2),Calendrier[Délais en mois],1)+1),"#! Vérifiez l'onglet Calendrier et que le milieu de la tâche tombe bien dans une étape clé") -> EC01 | T7: =IF(Prorata_temporis[[#This Row],[Destination des aides]]="Fonctionnement",SUM(Prorata_temporis[[#This Row],[Personne.mois cat 1]:[Personne.mois cat 3]]),0) -> 1 | U7: =SUMPRODUCT(INDEX(Partenaires[[Salaire Cat. 1]:[Salaire Cat. 3]],MATCH(Prorata_temporis[[#This Row],[Partenaire]],Partenaires[Nom court],0),),Prorata_temporis[[#This Row],[Personne.mois cat 1]:[Personne.mois cat 3]]) -> 8000 | V7: =20%*Prorata_temporis[[#This Row],[Salaires]] -> 1600 | W7: =Prorata_temporis[[#This Row],[Dépenses de sous-traitance H.T.]] -> 0 | X7: =Prorata_temporis[[#This Row],[Contribution aux amortissements]] -> 0 | Y7: =Prorata_temporis[[#This Row],[Autres dépenses]] -> 1000 | Z7: =IF(Prorata_temporis[[#This Row],[Destination des aides]]="Fonctionnement",SUM(Prorata_temporis[[#This Row],[Salaires]:[Autres dépenses2]]),0) -> 10600 | AA7: =IF(Prorata_temporis[[#This Row],[Destination des aides]]="Investissement",ROUND(SUM(Prorata_temporis[[#This Row],[Salaires]:[Autres dépenses2]],Prorata_temporis[[#This Row],[Investissements]]),0),0) -> 0 | AB7: =Prorata_temporis[[#This Row],[Coûts de fonctionnement]]+Prorata_temporis[[#This Row],[Coûts d''investissement]] -> 10600 | AC7: =(MATCH(Prorata_temporis[[#This Row],[Mois de début]]-1,Calendrier[Délais en mois],1)<>MATCH(Prorata_temporis[[#This Row],[Mois de fin]]-1,Calendrier[Délais en mois],1)) -> FALSE
A8: LOT 1 | C8: 2 | D8: Gestion de projet | E8: IXE | F8: 13 | G8: 18 | H8: 1.2 | I8: 1 | N8: 1000 | P8: =IF(Prorata_temporis[[#This Row],[Investissements]]>0,"Investissement","Fonctionnement") -> Fonctionnement | Q8: =INDEX(Partenaires[Type de coûts],MATCH(Prorata_temporis[[#This Row],[Partenaire]],Partenaires[Nom court],0)) -> Complets | R8: =Prorata_temporis[[#This Row],[Mois de fin]]-Prorata_temporis[[#This Row],[Mois de début]]+1 -> 6 | S8: =IFERROR(INDEX(Calendrier[Etapes clés],MATCH(INT((Prorata_temporis[[#This Row],[Mois de début]]+Prorata_temporis[[#This Row],[Mois de fin]]+1)/2),Calendrier[Délais en mois],1)+1),"#! Vérifiez l'onglet Calendrier et que le milieu de la tâche tombe bien dans une étape clé") -> EC02 | T8: =IF(Prorata_temporis[[#This Row],[Destination des aides]]="Fonctionnement",SUM(Prorata_temporis[[#This Row],[Personne.mois cat 1]:[Personne.mois cat 3]]),0) -> 1 | U8: =SUMPRODUCT(INDEX(Partenaires[[Salaire Cat. 1]:[Salaire Cat. 3]],MATCH(Prorata_temporis[[#This Row],[Partenaire]],Partenaires[Nom court],0),),Prorata_temporis[[#This Row],[Personne.mois cat 1]:[Personne.mois cat 3]]) -> 8000 | V8: =20%*Prorata_temporis[[#This Row],[Salaires]] -> 1600 | W8: =Prorata_temporis[[#This Row],[Dépenses de sous-traitance H.T.]] -> 0 | X8: =Prorata_temporis[[#This Row],[Contribution aux amortissements]] -> 0 | Y8: =Prorata_temporis[[#This Row],[Autres dépenses]] -> 1000 | Z8: =IF(Prorata_temporis[[#This Row],[Destination des aides]]="Fonctionnement",SUM(Prorata_temporis[[#This Row],[Salaires]:[Autres dépenses2]]),0) -> 10600 | AA8: =IF(Prorata_temporis[[#This Row],[Destination des aides]]="Investissement",ROUND(SUM(Prorata_temporis[[#This Row],[Salaires]:[Autres dépenses2]],Prorata_temporis[[#This Row],[Investissements]]),0),0) -> 0 | AB8: =Prorata_temporis[[#This Row],[Coûts de fonctionnement]]+Prorata_temporis[[#This Row],[Coûts d''investissement]] -> 10600 | AC8: =(MATCH(Prorata_temporis[[#This Row],[Mois de début]]-1,Calendrier[Délais en mois],1)<>MATCH(Prorata_temporis[[#This Row],[Mois de fin]]-1,Calendrier[Délais en mois],1)) -> FALSE
A9: LOT 1 | C9: 3 | D9: Gestion de projet | E9: IXE | F9: 25 | G9: 36 | H9: 1.3 | I9: 1 | N9: 1000 | P9: =IF(Prorata_temporis[[#This Row],[Investissements]]>0,"Investissement","Fonctionnement") -> Fonctionnement | Q9: =INDEX(Partenaires[Type de coûts],MATCH(Prorata_temporis[[#This Row],[Partenaire]],Partenaires[Nom court],0)) -> Complets | R9: =Prorata_temporis[[#This Row],[Mois de fin]]-Prorata_temporis[[#This Row],[Mois de début]]+1 -> 12 | S9: =IFERROR(INDEX(Calendrier[Etapes clés],MATCH(INT((Prorata_temporis[[#This Row],[Mois de début]]+Prorata_temporis[[#This Row],[Mois de fin]]+1)/2),Calendrier[Délais en mois],1)+1),"#! Vérifiez l'onglet Calendrier et que le milieu de la tâche tombe bien dans une étape clé") -> EC03 | T9: =IF(Prorata_temporis[[#This Row],[Destination des aides]]="Fonctionnement",SUM(Prorata_temporis[[#This Row],[Personne.mois cat 1]:[Personne.mois cat 3]]),0) -> 1 | U9: =SUMPRODUCT(INDEX(Partenaires[[Salaire Cat. 1]:[Salaire Cat. 3]],MATCH(Prorata_temporis[[#This Row],[Partenaire]],Partenaires[Nom court],0),),Prorata_temporis[[#This Row],[Personne.mois cat 1]:[Personne.mois cat 3]]) -> 8000 | V9: =20%*Prorata_temporis[[#This Row],[Salaires]] -> 1600 | W9: =Prorata_temporis[[#This Row],[Dépenses de sous-traitance H.T.]] -> 0 | X9: =Prorata_temporis[[#This Row],[Contribution aux amortissements]] -> 0 | Y9: =Prorata_temporis[[#This Row],[Autres dépenses]] -> 1000 | Z9: =IF(Prorata_temporis[[#This Row],[Destination des aides]]="Fonctionnement",SUM(Prorata_temporis[[#This Row],[Salaires]:[Autres dépenses2]]),0) -> 10600 | AA9: =IF(Prorata_temporis[[#This Row],[Destination des aides]]="Investissement",ROUND(SUM(Prorata_temporis[[#This Row],[Salaires]:[Autres dépenses2]],Prorata_temporis[[#This Row],[Investissements]]),0),0) -> 0 | AB9: =Prorata_temporis[[#This Row],[Coûts de fonctionnement]]+Prorata_temporis[[#This Row],[Coûts d''investissement]] -> 10600 | AC9: =(MATCH(Prorata_temporis[[#This Row],[Mois de début]]-1,Calendrier[Délais en mois],1)<>MATCH(Prorata_temporis[[#This Row],[Mois de fin]]-1,Calendrier[Délais en mois],1)) -> FALSE
A10: LOT 2 | C10: 1 | D10: Faisabilité brique techno | E10: IXE | F10: 1 | G10: 12 | H10: 2.1 | I10: 8 | J10: 4 | K10: 2 | L10: 33333.33333 | M10: 16666.66667 | N10: 6666.666667 | O10: 0 | P10: =IF(Prorata_temporis[[#This Row],[Investissements]]>0,"Investissement","Fonctionnement") -> Fonctionnement | Q10: =INDEX(Partenaires[Type de coûts],MATCH(Prorata_temporis[[#This Row],[Partenaire]],Partenaires[Nom court],0)) -> Complets | R10: =Prorata_temporis[[#This Row],[Mois de fin]]-Prorata_temporis[[#This Row],[Mois de début]]+1 -> 12 | S10: =IFERROR(INDEX(Calendrier[Etapes clés],MATCH(INT((Prorata_temporis[[#This Row],[Mois de début]]+Prorata_temporis[[#This Row],[Mois de fin]]+1)/2),Calendrier[Délais en mois],1)+1),"#! Vérifiez l'onglet Calendrier et que le milieu de la tâche tombe bien dans une étape clé") -> EC01 | T10: =IF(Prorata_temporis[[#This Row],[Destination des aides]]="Fonctionnement",SUM(Prorata_temporis[[#This Row],[Personne.mois cat 1]:[Personne.mois cat 3]]),0) -> 14 | U10: =SUMPRODUCT(INDEX(Partenaires[[Salaire Cat. 1]:[Salaire Cat. 3]],MATCH(Prorata_temporis[[#This Row],[Partenaire]],Partenaires[Nom court],0),),Prorata_temporis[[#This Row],[Personne.mois cat 1]:[Personne.mois cat 3]]) -> 96000 | V10: =20%*Prorata_temporis[[#This Row],[Salaires]] -> 19200 | W10: =Prorata_temporis[[#This Row],[Dépenses de sous-traitance H.T.]] -> 33333.33333 | X10: =Prorata_temporis[[#This Row],[Contribution aux amortissements]] -> 16666.66667 | Y10: =Prorata_temporis[[#This Row],[Autres dépenses]] -> 6666.666667 | Z10: =IF(Prorata_temporis[[#This Row],[Destination des aides]]="Fonctionnement",SUM(Prorata_temporis[[#This Row],[Salaires]:[Autres dépenses2]]),0) -> 171866.6667 | AA10: =IF(Prorata_temporis[[#This Row],[Destination des aides]]="Investissement",ROUND(SUM(Prorata_temporis[[#This Row],[Salaires]:[Autres dépenses2]],Prorata_temporis[[#This Row],[Investissements]]),0),0) -> 0 | AB10: =Prorata_temporis[[#This Row],[Coûts de fonctionnement]]+Prorata_temporis[[#This Row],[Coûts d''investissement]] -> 171866.6667 | AC10: =(MATCH(Prorata_temporis[[#This Row],[Mois de début]]-1,Calendrier[Délais en mois],1)<>MATCH(Prorata_temporis[[#This Row],[Mois de fin]]-1,Calendrier[Délais en mois],1)) -> FALSE
A11: LOT 2 | C11: 1 | D11: Faisabilité brique techno | E11: IXE | F11: 13 | G11: 18 | H11: 2.1 | I11: 4 | J11: 2 | K11: 1 | L11: 16666.66667 | M11: 8333.333333 | N11: 3333.333333 | O11: 0 | P11: =IF(Prorata_temporis[[#This Row],[Investissements]]>0,"Investissement","Fonctionnement") -> Fonctionnement | Q11: =INDEX(Partenaires[Type de coûts],MATCH(Prorata_temporis[[#This Row],[Partenaire]],Partenaires[Nom court],0)) -> Complets | R11: =Prorata_temporis[[#This Row],[Mois de fin]]-Prorata_temporis[[#This Row],[Mois de début]]+1 -> 6 | S11: =IFERROR(INDEX(Calendrier[Etapes clés],MATCH(INT((Prorata_temporis[[#This Row],[Mois de début]]+Prorata_temporis[[#This Row],[Mois de fin]]+1)/2),Calendrier[Délais en mois],1)+1),"#! Vérifiez l'onglet Calendrier et que le milieu de la tâche tombe bien dans une étape clé") -> EC02 | T11: =IF(Prorata_temporis[[#This Row],[Destination des aides]]="Fonctionnement",SUM(Prorata_temporis[[#This Row],[Personne.mois cat 1]:[Personne.mois cat 3]]),0) -> 7 | U11: =SUMPRODUCT(INDEX(Partenaires[[Salaire Cat. 1]:[Salaire Cat. 3]],MATCH(Prorata_temporis[[#This Row],[Partenaire]],Partenaires[Nom court],0),),Prorata_temporis[[#This Row],[Personne.mois cat 1]:[Personne.mois cat 3]]) -> 48000 | V11: =20%*Prorata_temporis[[#This Row],[Salaires]] -> 9600 | W11: =Prorata_temporis[[#This Row],[Dépenses de sous-traitance H.T.]] -> 16666.66667 | X11: =Prorata_temporis[[#This Row],[Contribution aux amortissements]] -> 8333.333333 | Y11: =Prorata_temporis[[#This Row],[Autres dépenses]] -> 3333.333333 | Z11: =IF(Prorata_temporis[[#This Row],[Destination des aides]]="Fonctionnement",SUM(Prorata_temporis[[#This Row],[Salaires]:[Autres dépenses2]]),0) -> 85933.33333 | AA11: =IF(Prorata_temporis[[#This Row],[Destination des aides]]="Investissement",ROUND(SUM(Prorata_temporis[[#This Row],[Salaires]:[Autres dépenses2]],Prorata_temporis[[#This Row],[Investissements]]),0),0) -> 0 | AB11: =Prorata_temporis[[#This Row],[Coûts de fonctionnement]]+Prorata_temporis[[#This Row],[Coûts d''investissement]] -> 85933.33333 | AC11: =(MATCH(Prorata_temporis[[#This Row],[Mois de début]]-1,Calendrier[Délais en mois],1)<>MATCH(Prorata_temporis[[#This Row],[Mois de fin]]-1,Calendrier[Délais en mois],1)) -> FALSE
A12: LOT 2 | C12: 1 | D12: Faisabilité brique techno | E12: IGREC | F12: 1 | G12: 12 | H12: 2.1 | I12: 6 | J12: 3 | L12: 15000 | M12: 5000 | N12: 5000 | P12: =IF(Prorata_temporis[[#This Row],[Investissements]]>0,"Investissement","Fonctionnement") -> Fonctionnement | Q12: =INDEX(Partenaires[Type de coûts],MATCH(Prorata_temporis[[#This Row],[Partenaire]],Partenaires[Nom court],0)) -> Complets | R12: =Prorata_temporis[[#This Row],[Mois de fin]]-Prorata_temporis[[#This Row],[Mois de début]]+1 -> 12 | S12: =IFERROR(INDEX(Calendrier[Etapes clés],MATCH(INT((Prorata_temporis[[#This Row],[Mois de début]]+Prorata_temporis[[#This Row],[Mois de fin]]+1)/2),Calendrier[Délais en mois],1)+1),"#! Vérifiez l'onglet Calendrier et que le milieu de la tâche tombe bien dans une étape clé") -> EC01 | T12: =IF(Prorata_temporis[[#This Row],[Destination des aides]]="Fonctionnement",SUM(Prorata_temporis[[#This Row],[Personne.mois cat 1]:[Personne.mois cat 3]]),0) -> 9 | U12: =SUMPRODUCT(INDEX(Partenaires[[Salaire Cat. 1]:[Salaire Cat. 3]],MATCH(Prorata_temporis[[#This Row],[Partenaire]],Partenaires[Nom court],0),),Prorata_temporis[[#This Row],[Personne.mois cat 1]:[Personne.mois cat 3]]) -> 60000 | V12: =20%*Prorata_temporis[[#This Row],[Salaires]] -> 12000 | W12: =Prorata_temporis[[#This Row],[Dépenses de sous-traitance H.T.]] -> 15000 | X12: =Prorata_temporis[[#This Row],[Contribution aux amortissements]] -> 5000 | Y12: =Prorata_temporis[[#This Row],[Autres dépenses]] -> 5000 | Z12: =IF(Prorata_temporis[[#This Row],[Destination des aides]]="Fonctionnement",SUM(Prorata_temporis[[#This Row],[Salaires]:[Autres dépenses2]]),0) -> 97000 | AA12: =IF(Prorata_temporis[[#This Row],[Destination des aides]]="Investissement",ROUND(SUM(Prorata_temporis[[#This Row],[Salaires]:[Autres dépenses2]],Prorata_temporis[[#This Row],[Investissements]]),0),0) -> 0 | AB12: =Prorata_temporis[[#This Row],[Coûts de fonctionnement]]+Prorata_temporis[[#This Row],[Coûts d''investissement]] -> 97000 | AC12: =(MATCH(Prorata_temporis[[#This Row],[Mois de début]]-1,Calendrier[Délais en mois],1)<>MATCH(Prorata_temporis[[#This Row],[Mois de fin]]-1,Calendrier[Délais en mois],1)) -> FALSE
A13: LOT 2 | C13: 1 | D13: Faisabilité brique techno | E13: ZED | F13: 1 | G13: 12 | H13: 2.1 | I13: 6 | J13: 3 | L13: 2500 | M13: 2500 | N13: 2500 | P13: =IF(Prorata_temporis[[#This Row],[Investissements]]>0,"Investissement","Fonctionnement") -> Fonctionnement | Q13: =INDEX(Partenaires[Type de coûts],MATCH(Prorata_temporis[[#This Row],[Partenaire]],Partenaires[Nom court],0)) -> Complets | R13: =Prorata_temporis[[#This Row],[Mois de fin]]-Prorata_temporis[[#This Row],[Mois de début]]+1 -> 12 | S13: =IFERROR(INDEX(Calendrier[Etapes clés],MATCH(INT((Prorata_temporis[[#This Row],[Mois de début]]+Prorata_temporis[[#This Row],[Mois de fin]]+1)/2),Calendrier[Délais en mois],1)+1),"#! Vérifiez l'onglet Calendrier et que le milieu de la tâche tombe bien dans une étape clé") -> EC01 | T13: =IF(Prorata_temporis[[#This Row],[Destination des aides]]="Fonctionnement",SUM(Prorata_temporis[[#This Row],[Personne.mois cat 1]:[Personne.mois cat 3]]),0) -> 9 | U13: =SUMPRODUCT(INDEX(Partenaires[[Salaire Cat. 1]:[Salaire Cat. 3]],MATCH(Prorata_temporis[[#This Row],[Partenaire]],Partenaires[Nom court],0),),Prorata_temporis[[#This Row],[Personne.mois cat 1]:[Personne.mois cat 3]]) -> 67500 | V13: =20%*Prorata_temporis[[#This Row],[Salaires]] -> 13500 | W13: =Prorata_temporis[[#This Row],[Dépenses de sous-traitance H.T.]] -> 2500 | X13: =Prorata_temporis[[#This Row],[Contribution aux amortissements]] -> 2500 | Y13: =Prorata_temporis[[#This Row],[Autres dépenses]] -> 2500 | Z13: =IF(Prorata_temporis[[#This Row],[Destination des aides]]="Fonctionnement",SUM(Prorata_temporis[[#This Row],[Salaires]:[Autres dépenses2]]),0) -> 88500 | AA13: =IF(Prorata_temporis[[#This Row],[Destination des aides]]="Investissement",ROUND(SUM(Prorata_temporis[[#This Row],[Salaires]:[Autres dépenses2]],Prorata_temporis[[#This Row],[Investissements]]),0),0) -> 0 | AB13: =Prorata_temporis[[#This Row],[Coûts de fonctionnement]]+Prorata_temporis[[#This Row],[Coûts d''investissement]] -> 88500 | AC13: =(MATCH(Prorata_temporis[[#This Row],[Mois de début]]-1,Calendrier[Délais en mois],1)<>MATCH(Prorata_temporis[[#This Row],[Mois de fin]]-1,Calendrier[Délais en mois],1)) -> FALSE
A14: LOT 2 | C14: 1 | D14: Faisabilité brique techno | E14: ALPHA | F14: 1 | G14: 12 | H14: 2.2 | I14: 6 | J14: 3 | L14: 2500 | M14: 2500 | N14: 2500 | P14: =IF(Prorata_temporis[[#This Row],[Investissements]]>0,"Investissement","Fonctionnement") -> Fonctionnement | Q14: =INDEX(Partenaires[Type de coûts],MATCH(Prorata_temporis[[#This Row],[Partenaire]],Partenaires[Nom court],0)) -> Complets | R14: =Prorata_temporis[[#This Row],[Mois de fin]]-Prorata_temporis[[#This Row],[Mois de début]]+1 -> 12 | S14: =IFERROR(INDEX(Calendrier[Etapes clés],MATCH(INT((Prorata_temporis[[#This Row],[Mois de début]]+Prorata_temporis[[#This Row],[Mois de fin]]+1)/2),Calendrier[Délais en mois],1)+1),"#! Vérifiez l'onglet Calendrier et que le milieu de la tâche tombe bien dans une étape clé") -> EC01 | T14: =IF(Prorata_temporis[[#This Row],[Destination des aides]]="Fonctionnement",SUM(Prorata_temporis[[#This Row],[Personne.mois cat 1]:[Personne.mois cat 3]]),0) -> 9 | U14: =SUMPRODUCT(INDEX(Partenaires[[Salaire Cat. 1]:[Salaire Cat. 3]],MATCH(Prorata_temporis[[#This Row],[Partenaire]],Partenaires[Nom court],0),),Prorata_temporis[[#This Row],[Personne.mois cat 1]:[Personne.mois cat 3]]) -> 52500 | V14: =20%*Prorata_temporis[[#This Row],[Salaires]] -> 10500 | W14: =Prorata_temporis[[#This Row],[Dépenses de sous-traitance H.T.]] -> 2500 | X14: =Prorata_temporis[[#This Row],[Contribution aux amortissements]] -> 2500 | Y14: =Prorata_temporis[[#This Row],[Autres dépenses]] -> 2500 | Z14: =IF(Prorata_temporis[[#This Row],[Destination des aides]]="Fonctionnement",SUM(Prorata_temporis[[#This Row],[Salaires]:[Autres dépenses2]]),0) -> 70500 | AA14: =IF(Prorata_temporis[[#This Row],[Destination des aides]]="Investissement",ROUND(SUM(Prorata_temporis[[#This Row],[Salaires]:[Autres dépenses2]],Prorata_temporis[[#This Row],[Investissements]]),0),0) -> 0 | AB14: =Prorata_temporis[[#This Row],[Coûts de fonctionnement]]+Prorata_temporis[[#This Row],[Coûts d''investissement]] -> 70500 | AC14: =(MATCH(Prorata_temporis[[#This Row],[Mois de début]]-1,Calendrier[Délais en mois],1)<>MATCH(Prorata_temporis[[#This Row],[Mois de fin]]-1,Calendrier[Délais en mois],1)) -> FALSE
A15: LOT 2 | C15: 1 | D15: Faisabilité brique techno | E15: BETA | F15: 1 | G15: 12 | H15: 2.3 | I15: 6 | J15: 3 | L15: 2500 | M15: 2500 | N15: 2500 | P15: =IF(Prorata_temporis[[#This Row],[Investissements]]>0,"Investissement","Fonctionnement") -> Fonctionnement | Q15: =INDEX(Partenaires[Type de coûts],MATCH(Prorata_temporis[[#This Row],[Partenaire]],Partenaires[Nom court],0)) -> Marginaux | R15: =Prorata_temporis[[#This Row],[Mois de fin]]-Prorata_temporis[[#This Row],[Mois de début]]+1 -> 12 | S15: =IFERROR(INDEX(Calendrier[Etapes clés],MATCH(INT((Prorata_temporis[[#This Row],[Mois de début]]+Prorata_temporis[[#This Row],[Mois de fin]]+1)/2),Calendrier[Délais en mois],1)+1),"#! Vérifiez l'onglet Calendrier et que le milieu de la tâche tombe bien dans une étape clé") -> EC01 | T15: =IF(Prorata_temporis[[#This Row],[Destination des aides]]="Fonctionnement",SUM(Prorata_temporis[[#This Row],[Personne.mois cat 1]:[Personne.mois cat 3]]),0) -> 9 | U15: =SUMPRODUCT(INDEX(Partenaires[[Salaire Cat. 1]:[Salaire Cat. 3]],MATCH(Prorata_temporis[[#This Row],[Partenaire]],Partenaires[Nom court],0),),Prorata_temporis[[#This Row],[Personne.mois cat 1]:[Personne.mois cat 3]]) -> 52500 | V15: =20%*Prorata_temporis[[#This Row],[Salaires]] -> 10500 | W15: =Prorata_temporis[[#This Row],[Dépenses de sous-traitance H.T.]] -> 2500 | X15: =Prorata_temporis[[#This Row],[Contribution aux amortissements]] -> 2500 | Y15: =Prorata_temporis[[#This Row],[Autres dépenses]] -> 2500 | Z15: =IF(Prorata_temporis[[#This Row],[Destination des aides]]="Fonctionnement",SUM(Prorata_temporis[[#This Row],[Salaires]:[Autres dépenses2]]),0) -> 70500 | AA15: =IF(Prorata_temporis[[#This Row],[Destination des aides]]="Investissement",ROUND(SUM(Prorata_temporis[[#This Row],[Salaires]:[Autres dépenses2]],Prorata_temporis[[#This Row],[Investissements]]),0),0) -> 0 | AB15: =Prorata_temporis[[#This Row],[Coûts de fonctionnement]]+Prorata_temporis[[#This Row],[Coûts d''investissement]] -> 70500 | AC15: =(MATCH(Prorata_temporis[[#This Row],[Mois de début]]-1,Calendrier[Délais en mois],1)<>MATCH(Prorata_temporis[[#This Row],[Mois de fin]]-1,Calendrier[Délais en mois],1)) -> FALSE
A16: LOT 2 | C16: 2 | D16: Recherche brique techno | E16: IXE | F16: 13 | G16: 24 | H16: 2.2 | I16: 24 | J16: 12 | K16: 6 | L16: 100000 | M16: 50000 | N16: 20000 | P16: =IF(Prorata_temporis[[#This Row],[Investissements]]>0,"Investissement","Fonctionnement") -> Fonctionnement | Q16: =INDEX(Partenaires[Type de coûts],MATCH(Prorata_temporis[[#This Row],[Partenaire]],Partenaires[Nom court],0)) -> Complets | R16: =Prorata_temporis[[#This Row],[Mois de fin]]-Prorata_temporis[[#This Row],[Mois de début]]+1 -> 12 | S16: =IFERROR(INDEX(Calendrier[Etapes clés],MATCH(INT((Prorata_temporis[[#This Row],[Mois de début]]+Prorata_temporis[[#This Row],[Mois de fin]]+1)/2),Calendrier[Délais en mois],1)+1),"#! Vérifiez l'onglet Calendrier et que le milieu de la tâche tombe bien dans une étape clé") -> EC02 | T16: =IF(Prorata_temporis[[#This Row],[Destination des aides]]="Fonctionnement",SUM(Prorata_temporis[[#This Row],[Personne.mois cat 1]:[Personne.mois cat 3]]),0) -> 42 | U16: =SUMPRODUCT(INDEX(Partenaires[[Salaire Cat. 1]:[Salaire Cat. 3]],MATCH(Prorata_temporis[[#This Row],[Partenaire]],Partenaires[Nom court],0),),Prorata_temporis[[#This Row],[Personne.mois cat 1]:[Personne.mois cat 3]]) -> 288000 | V16: =20%*Prorata_temporis[[#This Row],[Salaires]] -> 57600 | W16: =Prorata_temporis[[#This Row],[Dépenses de sous-traitance H.T.]] -> 100000 | X16: =Prorata_temporis[[#This Row],[Contribution aux amortissements]] -> 50000 | Y16: =Prorata_temporis[[#This Row],[Autres dépenses]] -> 20000 | Z16: =IF(Prorata_temporis[[#This Row],[Destination des aides]]="Fonctionnement",SUM(Prorata_temporis[[#This Row],[Salaires]:[Autres dépenses2]]),0) -> 515600 | AA16: =IF(Prorata_temporis[[#This Row],[Destination des aides]]="Investissement",ROUND(SUM(Prorata_temporis[[#This Row],[Salaires]:[Autres dépenses2]],Prorata_temporis[[#This Row],[Investissements]]),0),0) -> 0 | AB16: =Prorata_temporis[[#This Row],[Coûts de fonctionnement]]+Prorata_temporis[[#This Row],[Coûts d''investissement]] -> 515600 | AC16: =(MATCH(Prorata_temporis[[#This Row],[Mois de début]]-1,Calendrier[Délais en mois],1)<>MATCH(Prorata_temporis[[#This Row],[Mois de fin]]-1,Calendrier[Délais en mois],1)) -> FALSE
A17: LOT 2 | C17: 2 | D17: Recherche brique techno | E17: IGREC | F17: 13 | G17: 24 | H17: 2.2 | I17: 12 | J17: 6 | L17: 30000 | M17: 10000 | N17: 10000 | P17: =IF(Prorata_temporis[[#This Row],[Investissements]]>0,"Investissement","Fonctionnement") -> Fonctionnement | Q17: =INDEX(Partenaires[Type de coûts],MATCH(Prorata_temporis[[#This Row],[Partenaire]],Partenaires[Nom court],0)) -> Complets | R17: =Prorata_temporis[[#This Row],[Mois de fin]]-Prorata_temporis[[#This Row],[Mois de début]]+1 -> 12 | S17: =IFERROR(INDEX(Calendrier[Etapes clés],MATCH(INT((Prorata_temporis[[#This Row],[Mois de début]]+Prorata_temporis[[#This Row],[Mois de fin]]+1)/2),Calendrier[Délais en mois],1)+1),"#! Vérifiez l'onglet Calendrier et que le milieu de la tâche tombe bien dans une étape clé") -> EC02 | T17: =IF(Prorata_temporis[[#This Row],[Destination des aides]]="Fonctionnement",SUM(Prorata_temporis[[#This Row],[Personne.mois cat 1]:[Personne.mois cat 3]]),0) -> 18 | U17: =SUMPRODUCT(INDEX(Partenaires[[Salaire Cat. 1]:[Salaire Cat. 3]],MATCH(Prorata_temporis[[#This Row],[Partenaire]],Partenaires[Nom court],0),),Prorata_temporis[[#This Row],[Personne.mois cat 1]:[Personne.mois cat 3]]) -> 120000 | V17: =20%*Prorata_temporis[[#This Row],[Salaires]] -> 24000 | W17: =Prorata_temporis[[#This Row],[Dépenses de sous-traitance H.T.]] -> 30000 | X17: =Prorata_temporis[[#This Row],[Contribution aux amortissements]] -> 10000 | Y17: =Prorata_temporis[[#This Row],[Autres dépenses]] -> 10000 | Z17: =IF(Prorata_temporis[[#This Row],[Destination des aides]]="Fonctionnement",SUM(Prorata_temporis[[#This Row],[Salaires]:[Autres dépenses2]]),0) -> 194000 | AA17: =IF(Prorata_temporis[[#This Row],[Destination des aides]]="Investissement",ROUND(SUM(Prorata_temporis[[#This Row],[Salaires]:[Autres dépenses2]],Prorata_temporis[[#This Row],[Investissements]]),0),0) -> 0 | AB17: =Prorata_temporis[[#This Row],[Coûts de fonctionnement]]+Prorata_temporis[[#This Row],[Coûts d''investissement]] -> 194000 | AC17: =(MATCH(Prorata_temporis[[#This Row],[Mois de début]]-1,Calendrier[Délais en mois],1)<>MATCH(Prorata_temporis[[#This Row],[Mois de fin]]-1,Calendrier[Délais en mois],1)) -> FALSE
A18: LOT 2 | C18: 2 | D18: Recherche brique techno | E18: ZED | F18: 13 | G18: 24 | H18: 2.2 | I18: 12 | J18: 6 | L18: 5000 | M18: 5000 | N18: 5000 | P18: =IF(Prorata_temporis[[#This Row],[Investissements]]>0,"Investissement","Fonctionnement") -> Fonctionnement | Q18: =INDEX(Partenaires[Type de coûts],MATCH(Prorata_temporis[[#This Row],[Partenaire]],Partenaires[Nom court],0)) -> Complets | R18: =Prorata_temporis[[#This Row],[Mois de fin]]-Prorata_temporis[[#This Row],[Mois de début]]+1 -> 12 | S18: =IFERROR(INDEX(Calendrier[Etapes clés],MATCH(INT((Prorata_temporis[[#This Row],[Mois de début]]+Prorata_temporis[[#This Row],[Mois de fin]]+1)/2),Calendrier[Délais en mois],1)+1),"#! Vérifiez l'onglet Calendrier et que le milieu de la tâche tombe bien dans une étape clé") -> EC02 | T18: =IF(Prorata_temporis[[#This Row],[Destination des aides]]="Fonctionnement",SUM(Prorata_temporis[[#This Row],[Personne.mois cat 1]:[Personne.mois cat 3]]),0) -> 18 | U18: =SUMPRODUCT(INDEX(Partenaires[[Salaire Cat. 1]:[Salaire Cat. 3]],MATCH(Prorata_temporis[[#This Row],[Partenaire]],Partenaires[Nom court],0),),Prorata_temporis[[#This Row],[Personne.mois cat 1]:[Personne.mois cat 3]]) -> 135000 | V18: =20%*Prorata_temporis[[#This Row],[Salaires]] -> 27000 | W18: =Prorata_temporis[[#This Row],[Dépenses de sous-traitance H.T.]] -> 5000 | X18: =Prorata_temporis[[#This Row],[Contribution aux amortissements]] -> 5000 | Y18: =Prorata_temporis[[#This Row],[Autres dépenses]] -> 5000 | Z18: =IF(Prorata_temporis[[#This Row],[Destination des aides]]="Fonctionnement",SUM(Prorata_temporis[[#This Row],[Salaires]:[Autres dépenses2]]),0) -> 177000 | AA18: =IF(Prorata_temporis[[#This Row],[Destination des aides]]="Investissement",ROUND(SUM(Prorata_temporis[[#This Row],[Salaires]:[Autres dépenses2]],Prorata_temporis[[#This Row],[Investissements]]),0),0) -> 0 | AB18: =Prorata_temporis[[#This Row],[Coûts de fonctionnement]]+Prorata_temporis[[#This Row],[Coûts d''investissement]] -> 177000 | AC18: =(MATCH(Prorata_temporis[[#This Row],[Mois de début]]-1,Calendrier[Délais en mois],1)<>MATCH(Prorata_temporis[[#This Row],[Mois de fin]]-1,Calendrier[Délais en mois],1)) -> FALSE
A19: LOT 2 | C19: 2 | D19: Recherche brique techno | E19: ALPHA | F19: 13 | G19: 24 | H19: 2.2 | I19: 12 | N19: 1000 | P19: =IF(Prorata_temporis[[#This Row],[Investissements]]>0,"Investissement","Fonctionnement") -> Fonctionnement | Q19: =INDEX(Partenaires[Type de coûts],MATCH(Prorata_temporis[[#This Row],[Partenaire]],Partenaires[Nom court],0)) -> Complets | R19: =Prorata_temporis[[#This Row],[Mois de fin]]-Prorata_temporis[[#This Row],[Mois de début]]+1 -> 12 | S19: =IFERROR(INDEX(Calendrier[Etapes clés],MATCH(INT((Prorata_temporis[[#This Row],[Mois de début]]+Prorata_temporis[[#This Row],[Mois de fin]]+1)/2),Calendrier[Délais en mois],1)+1),"#! Vérifiez l'onglet Calendrier et que le milieu de la tâche tombe bien dans une étape clé") -> EC02 | T19: =IF(Prorata_temporis[[#This Row],[Destination des aides]]="Fonctionnement",SUM(Prorata_temporis[[#This Row],[Personne.mois cat 1]:[Personne.mois cat 3]]),0) -> 12 | U19: =SUMPRODUCT(INDEX(Partenaires[[Salaire Cat. 1]:[Salaire Cat. 3]],MATCH(Prorata_temporis[[#This Row],[Partenaire]],Partenaires[Nom court],0),),Prorata_temporis[[#This Row],[Personne.mois cat 1]:[Personne.mois cat 3]]) -> 72000 | V19: =20%*Prorata_temporis[[#This Row],[Salaires]] -> 14400 | W19: =Prorata_temporis[[#This Row],[Dépenses de sous-traitance H.T.]] -> 0 | X19: =Prorata_temporis[[#This Row],[Contribution aux amortissements]] -> 0 | Y19: =Prorata_temporis[[#This Row],[Autres dépenses]] -> 1000 | Z19: =IF(Prorata_temporis[[#This Row],[Destination des aides]]="Fonctionnement",SUM(Prorata_temporis[[#This Row],[Salaires]:[Autres dépenses2]]),0) -> 87400 | AA19: =IF(Prorata_temporis[[#This Row],[Destination des aides]]="Investissement",ROUND(SUM(Prorata_temporis[[#This Row],[Salaires]:[Autres dépenses2]],Prorata_temporis[[#This Row],[Investissements]]),0),0) -> 0 | AB19: =Prorata_temporis[[#This Row],[Coûts de fonctionnement]]+Prorata_temporis[[#This Row],[Coûts d''investissement]] -> 87400 | AC19: =(MATCH(Prorata_temporis[[#This Row],[Mois de début]]-1,Calendrier[Délais en mois],1)<>MATCH(Prorata_temporis[[#This Row],[Mois de fin]]-1,Calendrier[Délais en mois],1)) -> FALSE
A20: LOT 2 | C20: 2 | D20: Recherche brique techno | E20: BETA | F20: 13 | G20: 24 | H20: 2.2 | I20: 12 | N20: 1000 | P20: =IF(Prorata_temporis[[#This Row],[Investissements]]>0,"Investissement","Fonctionnement") -> Fonctionnement | Q20: =INDEX(Partenaires[Type de coûts],MATCH(Prorata_temporis[[#This Row],[Partenaire]],Partenaires[Nom court],0)) -> Marginaux | R20: =Prorata_temporis[[#This Row],[Mois de fin]]-Prorata_temporis[[#This Row],[Mois de début]]+1 -> 12 | S20: =IFERROR(INDEX(Calendrier[Etapes clés],MATCH(INT((Prorata_temporis[[#This Row],[Mois de début]]+Prorata_temporis[[#This Row],[Mois de fin]]+1)/2),Calendrier[Délais en mois],1)+1),"#! Vérifiez l'onglet Calendrier et que le milieu de la tâche tombe bien dans une étape clé") -> EC02 | T20: =IF(Prorata_temporis[[#This Row],[Destination des aides]]="Fonctionnement",SUM(Prorata_temporis[[#This Row],[Personne.mois cat 1]:[Personne.mois cat 3]]),0) -> 12 | U20: =SUMPRODUCT(INDEX(Partenaires[[Salaire Cat. 1]:[Salaire Cat. 3]],MATCH(Prorata_temporis[[#This Row],[Partenaire]],Partenaires[Nom court],0),),Prorata_temporis[[#This Row],[Personne.mois cat 1]:[Personne.mois cat 3]]) -> 72000 | V20: =20%*Prorata_temporis[[#This Row],[Salaires]] -> 14400 | W20: =Prorata_temporis[[#This Row],[Dépenses de sous-traitance H.T.]] -> 0 | X20: =Prorata_temporis[[#This Row],[Contribution aux amortissements]] -> 0 | Y20: =Prorata_temporis[[#This Row],[Autres dépenses]] -> 1000 | Z20: =IF(Prorata_temporis[[#This Row],[Destination des aides]]="Fonctionnement",SUM(Prorata_temporis[[#This Row],[Salaires]:[Autres dépenses2]]),0) -> 87400 | AA20: =IF(Prorata_temporis[[#This Row],[Destination des aides]]="Investissement",ROUND(SUM(Prorata_temporis[[#This Row],[Salaires]:[Autres dépenses2]],Prorata_temporis[[#This Row],[Investissements]]),0),0) -> 0 | AB20: =Prorata_temporis[[#This Row],[Coûts de fonctionnement]]+Prorata_temporis[[#This Row],[Coûts d''investissement]] -> 87400 | AC20: =(MATCH(Prorata_temporis[[#This Row],[Mois de début]]-1,Calendrier[Délais en mois],1)<>MATCH(Prorata_temporis[[#This Row],[Mois de fin]]-1,Calendrier[Délais en mois],1)) -> FALSE
A21: LOT 3 | C21: 3 | D21: Prototype produit A | E21: IXE | F21: 25 | G21: 36 | H21: 3.1 | I21: 48 | J21: 24 | K21: 12 | L21: 200000 | M21: 100000 | N21: 40000 | P21: =IF(Prorata_temporis[[#This Row],[Investissements]]>0,"Investissement","Fonctionnement") -> Fonctionnement | Q21: =INDEX(Partenaires[Type de coûts],MATCH(Prorata_temporis[[#This Row],[Partenaire]],Partenaires[Nom court],0)) -> Complets | R21: =Prorata_temporis[[#This Row],[Mois de fin]]-Prorata_temporis[[#This Row],[Mois de début]]+1 -> 12 | S21: =IFERROR(INDEX(Calendrier[Etapes clés],MATCH(INT((Prorata_temporis[[#This Row],[Mois de début]]+Prorata_temporis[[#This Row],[Mois de fin]]+1)/2),Calendrier[Délais en mois],1)+1),"#! Vérifiez l'onglet Calendrier et que le milieu de la tâche tombe bien dans une étape clé") -> EC03 | T21: =IF(Prorata_temporis[[#This Row],[Destination des aides]]="Fonctionnement",SUM(Prorata_temporis[[#This Row],[Personne.mois cat 1]:[Personne.mois cat 3]]),0) -> 84 | U21: =SUMPRODUCT(INDEX(Partenaires[[Salaire Cat. 1]:[Salaire Cat. 3]],MATCH(Prorata_temporis[[#This Row],[Partenaire]],Partenaires[Nom court],0),),Prorata_temporis[[#This Row],[Personne.mois cat 1]:[Personne.mois cat 3]]) -> 576000 | V21: =20%*Prorata_temporis[[#This Row],[Salaires]] -> 115200 | W21: =Prorata_temporis[[#This Row],[Dépenses de sous-traitance H.T.]] -> 200000 | X21: =Prorata_temporis[[#This Row],[Contribution aux amortissements]] -> 100000 | Y21: =Prorata_temporis[[#This Row],[Autres dépenses]] -> 40000 | Z21: =IF(Prorata_temporis[[#This Row],[Destination des aides]]="Fonctionnement",SUM(Prorata_temporis[[#This Row],[Salaires]:[Autres dépenses2]]),0) -> 1031200 | AA21: =IF(Prorata_temporis[[#This Row],[Destination des aides]]="Investissement",ROUND(SUM(Prorata_temporis[[#This Row],[Salaires]:[Autres dépenses2]],Prorata_temporis[[#This Row],[Investissements]]),0),0) -> 0 | AB21: =Prorata_temporis[[#This Row],[Coûts de fonctionnement]]+Prorata_temporis[[#This Row],[Coûts d''investissement]] -> 1031200 | AC21: =(MATCH(Prorata_temporis[[#This Row],[Mois de début]]-1,Calendrier[Délais en mois],1)<>MATCH(Prorata_temporis[[#This Row],[Mois de fin]]-1,Calendrier[Délais en mois],1)) -> FALSE
A22: LOT 3 | C22: 3 | D22: Prototype produit A | E22: IGREC | F22: 25 | G22: 36 | H22: 3.1 | I22: 24 | J22: 12 | L22: 60000 | M22: 20000 | N22: 20000 | P22: =IF(Prorata_temporis[[#This Row],[Investissements]]>0,"Investissement","Fonctionnement") -> Fonctionnement | Q22: =INDEX(Partenaires[Type de coûts],MATCH(Prorata_temporis[[#This Row],[Partenaire]],Partenaires[Nom court],0)) -> Complets | R22: =Prorata_temporis[[#This Row],[Mois de fin]]-Prorata_temporis[[#This Row],[Mois de début]]+1 -> 12 | S22: =IFERROR(INDEX(Calendrier[Etapes clés],MATCH(INT((Prorata_temporis[[#This Row],[Mois de début]]+Prorata_temporis[[#This Row],[Mois de fin]]+1)/2),Calendrier[Délais en mois],1)+1),"#! Vérifiez l'onglet Calendrier et que le milieu de la tâche tombe bien dans une étape clé") -> EC03 | T22: =IF(Prorata_temporis[[#This Row],[Destination des aides]]="Fonctionnement",SUM(Prorata_temporis[[#This Row],[Personne.mois cat 1]:[Personne.mois cat 3]]),0) -> 36 | U22: =SUMPRODUCT(INDEX(Partenaires[[Salaire Cat. 1]:[Salaire Cat. 3]],MATCH(Prorata_temporis[[#This Row],[Partenaire]],Partenaires[Nom court],0),),Prorata_temporis[[#This Row],[Personne.mois cat 1]:[Personne.mois cat 3]]) -> 240000 | V22: =20%*Prorata_temporis[[#This Row],[Salaires]] -> 48000 | W22: =Prorata_temporis[[#This Row],[Dépenses de sous-traitance H.T.]] -> 60000 | X22: =Prorata_temporis[[#This Row],[Contribution aux amortissements]] -> 20000 | Y22: =Prorata_temporis[[#This Row],[Autres dépenses]] -> 20000 | Z22: =IF(Prorata_temporis[[#This Row],[Destination des aides]]="Fonctionnement",SUM(Prorata_temporis[[#This Row],[Salaires]:[Autres dépenses2]]),0) -> 388000 | AA22: =IF(Prorata_temporis[[#This Row],[Destination des aides]]="Investissement",ROUND(SUM(Prorata_temporis[[#This Row],[Salaires]:[Autres dépenses2]],Prorata_temporis[[#This Row],[Investissements]]),0),0) -> 0 | AB22: =Prorata_temporis[[#This Row],[Coûts de fonctionnement]]+Prorata_temporis[[#This Row],[Coûts d''investissement]] -> 388000 | AC22: =(MATCH(Prorata_temporis[[#This Row],[Mois de début]]-1,Calendrier[Délais en mois],1)<>MATCH(Prorata_temporis[[#This Row],[Mois de fin]]-1,Calendrier[Délais en mois],1)) -> FALSE
A23: LOT 3 | C23: 3 | D23: Prototype produit A | E23: ZED | F23: 25 | G23: 36 | H23: 3.1 | I23: 24 | J23: 12 | L23: 10000 | M23: 10000 | N23: 10000 | P23: =IF(Prorata_temporis[[#This Row],[Investissements]]>0,"Investissement","Fonctionnement") -> Fonctionnement | Q23: =INDEX(Partenaires[Type de coûts],MATCH(Prorata_temporis[[#This Row],[Partenaire]],Partenaires[Nom court],0)) -> Complets | R23: =Prorata_temporis[[#This Row],[Mois de fin]]-Prorata_temporis[[#This Row],[Mois de début]]+1 -> 12 | S23: =IFERROR(INDEX(Calendrier[Etapes clés],MATCH(INT((Prorata_temporis[[#This Row],[Mois de début]]+Prorata_temporis[[#This Row],[Mois de fin]]+1)/2),Calendrier[Délais en mois],1)+1),"#! Vérifiez l'onglet Calendrier et que le milieu de la tâche tombe bien dans une étape clé") -> EC03 | T23: =IF(Prorata_temporis[[#This Row],[Destination des aides]]="Fonctionnement",SUM(Prorata_temporis[[#This Row],[Personne.mois cat 1]:[Personne.mois cat 3]]),0) -> 36 | U23: =SUMPRODUCT(INDEX(Partenaires[[Salaire Cat. 1]:[Salaire Cat. 3]],MATCH(Prorata_temporis[[#This Row],[Partenaire]],Partenaires[Nom court],0),),Prorata_temporis[[#This Row],[Personne.mois cat 1]:[Personne.mois cat 3]]) -> 270000 | V23: =20%*Prorata_temporis[[#This Row],[Salaires]] -> 54000 | W23: =Prorata_temporis[[#This Row],[Dépenses de sous-traitance H.T.]] -> 10000 | X23: =Prorata_temporis[[#This Row],[Contribution aux amortissements]] -> 10000 | Y23: =Prorata_temporis[[#This Row],[Autres dépenses]] -> 10000 | Z23: =IF(Prorata_temporis[[#This Row],[Destination des aides]]="Fonctionnement",SUM(Prorata_temporis[[#This Row],[Salaires]:[Autres dépenses2]]),0) -> 354000 | AA23: =IF(Prorata_temporis[[#This Row],[Destination des aides]]="Investissement",ROUND(SUM(Prorata_temporis[[#This Row],[Salaires]:[Autres dépenses2]],Prorata_temporis[[#This Row],[Investissements]]),0),0) -> 0 | AB23: =Prorata_temporis[[#This Row],[Coûts de fonctionnement]]+Prorata_temporis[[#This Row],[Coûts d''investissement]] -> 354000 | AC23: =(MATCH(Prorata_temporis[[#This Row],[Mois de début]]-1,Calendrier[Délais en mois],1)<>MATCH(Prorata_temporis[[#This Row],[Mois de fin]]-1,Calendrier[Délais en mois],1)) -> FALSE
A24: LOT 3 | C24: 3 | D24: Prototype produit B | E24: IXE | F24: 30 | G24: 36 | H24: 3.2 | I24: 48 | J24: 24 | K24: 12 | L24: 200000 | M24: 100000 | N24: 40000 | P24: =IF(Prorata_temporis[[#This Row],[Investissements]]>0,"Investissement","Fonctionnement") -> Fonctionnement | Q24: =INDEX(Partenaires[Type de coûts],MATCH(Prorata_temporis[[#This Row],[Partenaire]],Partenaires[Nom court],0)) -> Complets | R24: =Prorata_temporis[[#This Row],[Mois de fin]]-Prorata_temporis[[#This Row],[Mois de début]]+1 -> 7 | S24: =IFERROR(INDEX(Calendrier[Etapes clés],MATCH(INT((Prorata_temporis[[#This Row],[Mois de début]]+Prorata_temporis[[#This Row],[Mois de fin]]+1)/2),Calendrier[Délais en mois],1)+1),"#! Vérifiez l'onglet Calendrier et que le milieu de la tâche tombe bien dans une étape clé") -> EC03 | T24: =IF(Prorata_temporis[[#This Row],[Destination des aides]]="Fonctionnement",SUM(Prorata_temporis[[#This Row],[Personne.mois cat 1]:[Personne.mois cat 3]]),0) -> 84 | U24: =SUMPRODUCT(INDEX(Partenaires[[Salaire Cat. 1]:[Salaire Cat. 3]],MATCH(Prorata_temporis[[#This Row],[Partenaire]],Partenaires[Nom court],0),),Prorata_temporis[[#This Row],[Personne.mois cat 1]:[Personne.mois cat 3]]) -> 576000 | V24: =20%*Prorata_temporis[[#This Row],[Salaires]] -> 115200 | W24: =Prorata_temporis[[#This Row],[Dépenses de sous-traitance H.T.]] -> 200000 | X24: =Prorata_temporis[[#This Row],[Contribution aux amortissements]] -> 100000 | Y24: =Prorata_temporis[[#This Row],[Autres dépenses]] -> 40000 | Z24: =IF(Prorata_temporis[[#This Row],[Destination des aides]]="Fonctionnement",SUM(Prorata_temporis[[#This Row],[Salaires]:[Autres dépenses2]]),0) -> 1031200 | AA24: =IF(Prorata_temporis[[#This Row],[Destination des aides]]="Investissement",ROUND(SUM(Prorata_temporis[[#This Row],[Salaires]:[Autres dépenses2]],Prorata_temporis[[#This Row],[Investissements]]),0),0) -> 0 | AB24: =Prorata_temporis[[#This Row],[Coûts de fonctionnement]]+Prorata_temporis[[#This Row],[Coûts d''investissement]] -> 1031200 | AC24: =(MATCH(Prorata_temporis[[#This Row],[Mois de début]]-1,Calendrier[Délais en mois],1)<>MATCH(Prorata_temporis[[#This Row],[Mois de fin]]-1,Calendrier[Délais en mois],1)) -> FALSE
A25: LOT 3 | C25: 3 | D25: Prototype produit B | E25: IGREC | F25: 30 | G25: 36 | H25: 3.2 | I25: 24 | J25: 12 | L25: 60000 | M25: 20000 | N25: 20000 | P25: =IF(Prorata_temporis[[#This Row],[Investissements]]>0,"Investissement","Fonctionnement") -> Fonctionnement | Q25: =INDEX(Partenaires[Type de coûts],MATCH(Prorata_temporis[[#This Row],[Partenaire]],Partenaires[Nom court],0)) -> Complets | R25: =Prorata_temporis[[#This Row],[Mois de fin]]-Prorata_temporis[[#This Row],[Mois de début]]+1 -> 7 | S25: =IFERROR(INDEX(Calendrier[Etapes clés],MATCH(INT((Prorata_temporis[[#This Row],[Mois de début]]+Prorata_temporis[[#This Row],[Mois de fin]]+1)/2),Calendrier[Délais en mois],1)+1),"#! Vérifiez l'onglet Calendrier et que le milieu de la tâche tombe bien dans une étape clé") -> EC03 | T25: =IF(Prorata_temporis[[#This Row],[Destination des aides]]="Fonctionnement",SUM(Prorata_temporis[[#This Row],[Personne.mois cat 1]:[Personne.mois cat 3]]),0) -> 36 | U25: =SUMPRODUCT(INDEX(Partenaires[[Salaire Cat. 1]:[Salaire Cat. 3]],MATCH(Prorata_temporis[[#This Row],[Partenaire]],Partenaires[Nom court],0),),Prorata_temporis[[#This Row],[Personne.mois cat 1]:[Personne.mois cat 3]]) -> 240000 | V25: =20%*Prorata_temporis[[#This Row],[Salaires]] -> 48000 | W25: =Prorata_temporis[[#This Row],[Dépenses de sous-traitance H.T.]] -> 60000 | X25: =Prorata_temporis[[#This Row],[Contribution aux amortissements]] -> 20000 | Y25: =Prorata_temporis[[#This Row],[Autres dépenses]] -> 20000 | Z25: =IF(Prorata_temporis[[#This Row],[Destination des aides]]="Fonctionnement",SUM(Prorata_temporis[[#This Row],[Salaires]:[Autres dépenses2]]),0) -> 388000 | AA25: =IF(Prorata_temporis[[#This Row],[Destination des aides]]="Investissement",ROUND(SUM(Prorata_temporis[[#This Row],[Salaires]:[Autres dépenses2]],Prorata_temporis[[#This Row],[Investissements]]),0),0) -> 0 | AB25: =Prorata_temporis[[#This Row],[Coûts de fonctionnement]]+Prorata_temporis[[#This Row],[Coûts d''investissement]] -> 388000 | AC25: =(MATCH(Prorata_temporis[[#This Row],[Mois de début]]-1,Calendrier[Délais en mois],1)<>MATCH(Prorata_temporis[[#This Row],[Mois de fin]]-1,Calendrier[Délais en mois],1)) -> FALSE
A26: LOT 3 | C26: 3 | D26: Prototype produit B | E26: ZED | F26: 30 | G26: 36 | H26: 3.2 | I26: 24 | J26: 12 | L26: 10000 | M26: 10000 | N26: 10000 | P26: =IF(Prorata_temporis[[#This Row],[Investissements]]>0,"Investissement","Fonctionnement") -> Fonctionnement | Q26: =INDEX(Partenaires[Type de coûts],MATCH(Prorata_temporis[[#This Row],[Partenaire]],Partenaires[Nom court],0)) -> Complets | R26: =Prorata_temporis[[#This Row],[Mois de fin]]-Prorata_temporis[[#This Row],[Mois de début]]+1 -> 7 | S26: =IFERROR(INDEX(Calendrier[Etapes clés],MATCH(INT((Prorata_temporis[[#This Row],[Mois de début]]+Prorata_temporis[[#This Row],[Mois de fin]]+1)/2),Calendrier[Délais en mois],1)+1),"#! Vérifiez l'onglet Calendrier et que le milieu de la tâche tombe bien dans une étape clé") -> EC03 | T26: =IF(Prorata_temporis[[#This Row],[Destination des aides]]="Fonctionnement",SUM(Prorata_temporis[[#This Row],[Personne.mois cat 1]:[Personne.mois cat 3]]),0) -> 36 | U26: =SUMPRODUCT(INDEX(Partenaires[[Salaire Cat. 1]:[Salaire Cat. 3]],MATCH(Prorata_temporis[[#This Row],[Partenaire]],Partenaires[Nom court],0),),Prorata_temporis[[#This Row],[Personne.mois cat 1]:[Personne.mois cat 3]]) -> 270000 | V26: =20%*Prorata_temporis[[#This Row],[Salaires]] -> 54000 | W26: =Prorata_temporis[[#This Row],[Dépenses de sous-traitance H.T.]] -> 10000 | X26: =Prorata_temporis[[#This Row],[Contribution aux amortissements]] -> 10000 | Y26: =Prorata_temporis[[#This Row],[Autres dépenses]] -> 10000 | Z26: =IF(Prorata_temporis[[#This Row],[Destination des aides]]="Fonctionnement",SUM(Prorata_temporis[[#This Row],[Salaires]:[Autres dépenses2]]),0) -> 354000 | AA26: =IF(Prorata_temporis[[#This Row],[Destination des aides]]="Investissement",ROUND(SUM(Prorata_temporis[[#This Row],[Salaires]:[Autres dépenses2]],Prorata_temporis[[#This Row],[Investissements]]),0),0) -> 0 | AB26: =Prorata_temporis[[#This Row],[Coûts de fonctionnement]]+Prorata_temporis[[#This Row],[Coûts d''investissement]] -> 354000 | AC26: =(MATCH(Prorata_temporis[[#This Row],[Mois de début]]-1,Calendrier[Délais en mois],1)<>MATCH(Prorata_temporis[[#This Row],[Mois de fin]]-1,Calendrier[Délais en mois],1)) -> FALSE
A27: LOT 4 | C27: 1 | D27: Innovation procédé fabrication | E27: IXE | F27: 1 | G27: 12 | H27: 4.1 | I27: 12 | J27: 6 | K27: 3 | L27: 50000 | M27: 25000 | N27: 10000 | P27: =IF(Prorata_temporis[[#This Row],[Investissements]]>0,"Investissement","Fonctionnement") -> Fonctionnement | Q27: =INDEX(Partenaires[Type de coûts],MATCH(Prorata_temporis[[#This Row],[Partenaire]],Partenaires[Nom court],0)) -> Complets | R27: =Prorata_temporis[[#This Row],[Mois de fin]]-Prorata_temporis[[#This Row],[Mois de début]]+1 -> 12 | S27: =IFERROR(INDEX(Calendrier[Etapes clés],MATCH(INT((Prorata_temporis[[#This Row],[Mois de début]]+Prorata_temporis[[#This Row],[Mois de fin]]+1)/2),Calendrier[Délais en mois],1)+1),"#! Vérifiez l'onglet Calendrier et que le milieu de la tâche tombe bien dans une étape clé") -> EC01 | T27: =IF(Prorata_temporis[[#This Row],[Destination des aides]]="Fonctionnement",SUM(Prorata_temporis[[#This Row],[Personne.mois cat 1]:[Personne.mois cat 3]]),0) -> 21 | U27: =SUMPRODUCT(INDEX(Partenaires[[Salaire Cat. 1]:[Salaire Cat. 3]],MATCH(Prorata_temporis[[#This Row],[Partenaire]],Partenaires[Nom court],0),),Prorata_temporis[[#This Row],[Personne.mois cat 1]:[Personne.mois cat 3]]) -> 144000 | V27: =20%*Prorata_temporis[[#This Row],[Salaires]] -> 28800 | W27: =Prorata_temporis[[#This Row],[Dépenses de sous-traitance H.T.]] -> 50000 | X27: =Prorata_temporis[[#This Row],[Contribution aux amortissements]] -> 25000 | Y27: =Prorata_temporis[[#This Row],[Autres dépenses]] -> 10000 | Z27: =IF(Prorata_temporis[[#This Row],[Destination des aides]]="Fonctionnement",SUM(Prorata_temporis[[#This Row],[Salaires]:[Autres dépenses2]]),0) -> 257800 | AA27: =IF(Prorata_temporis[[#This Row],[Destination des aides]]="Investissement",ROUND(SUM(Prorata_temporis[[#This Row],[Salaires]:[Autres dépenses2]],Prorata_temporis[[#This Row],[Investissements]]),0),0) -> 0 | AB27: =Prorata_temporis[[#This Row],[Coûts de fonctionnement]]+Prorata_temporis[[#This Row],[Coûts d''investissement]] -> 257800 | AC27: =(MATCH(Prorata_temporis[[#This Row],[Mois de début]]-1,Calendrier[Délais en mois],1)<>MATCH(Prorata_temporis[[#This Row],[Mois de fin]]-1,Calendrier[Délais en mois],1)) -> FALSE
A28: LOT 4 | C28: 1 | D28: Innovation procédé fabrication | E28: IGREC | F28: 1 | G28: 12 | H28: 4.1 | I28: 6 | J28: 3 | L28: 15000 | M28: 5000 | N28: 5000 | P28: =IF(Prorata_temporis[[#This Row],[Investissements]]>0,"Investissement","Fonctionnement") -> Fonctionnement | Q28: =INDEX(Partenaires[Type de coûts],MATCH(Prorata_temporis[[#This Row],[Partenaire]],Partenaires[Nom court],0)) -> Complets | R28: =Prorata_temporis[[#This Row],[Mois de fin]]-Prorata_temporis[[#This Row],[Mois de début]]+1 -> 12 | S28: =IFERROR(INDEX(Calendrier[Etapes clés],MATCH(INT((Prorata_temporis[[#This Row],[Mois de début]]+Prorata_temporis[[#This Row],[Mois de fin]]+1)/2),Calendrier[Délais en mois],1)+1),"#! Vérifiez l'onglet Calendrier et que le milieu de la tâche tombe bien dans une étape clé") -> EC01 | T28: =IF(Prorata_temporis[[#This Row],[Destination des aides]]="Fonctionnement",SUM(Prorata_temporis[[#This Row],[Personne.mois cat 1]:[Personne.mois cat 3]]),0) -> 9 | U28: =SUMPRODUCT(INDEX(Partenaires[[Salaire Cat. 1]:[Salaire Cat. 3]],MATCH(Prorata_temporis[[#This Row],[Partenaire]],Partenaires[Nom court],0),),Prorata_temporis[[#This Row],[Personne.mois cat 1]:[Personne.mois cat 3]]) -> 60000 | V28: =20%*Prorata_temporis[[#This Row],[Salaires]] -> 12000 | W28: =Prorata_temporis[[#This Row],[Dépenses de sous-traitance H.T.]] -> 15000 | X28: =Prorata_temporis[[#This Row],[Contribution aux amortissements]] -> 5000 | Y28: =Prorata_temporis[[#This Row],[Autres dépenses]] -> 5000 | Z28: =IF(Prorata_temporis[[#This Row],[Destination des aides]]="Fonctionnement",SUM(Prorata_temporis[[#This Row],[Salaires]:[Autres dépenses2]]),0) -> 97000 | AA28: =IF(Prorata_temporis[[#This Row],[Destination des aides]]="Investissement",ROUND(SUM(Prorata_temporis[[#This Row],[Salaires]:[Autres dépenses2]],Prorata_temporis[[#This Row],[Investissements]]),0),0) -> 0 | AB28: =Prorata_temporis[[#This Row],[Coûts de fonctionnement]]+Prorata_temporis[[#This Row],[Coûts d''investissement]] -> 97000 | AC28: =(MATCH(Prorata_temporis[[#This Row],[Mois de début]]-1,Calendrier[Délais en mois],1)<>MATCH(Prorata_temporis[[#This Row],[Mois de fin]]-1,Calendrier[Délais en mois],1)) -> FALSE
A29: LOT 4 | C29: 2 | D29: Détachement de personnel de ZED chez IXE | E29: IXE | F29: 13 | G29: 24 | H29: 4.2 | L29: 100000 | P29: =IF(Prorata_temporis[[#This Row],[Investissements]]>0,"Investissement","Fonctionnement") -> Fonctionnement | Q29: =INDEX(Partenaires[Type de coûts],MATCH(Prorata_temporis[[#This Row],[Partenaire]],Partenaires[Nom court],0)) -> Complets | R29: =Prorata_temporis[[#This Row],[Mois de fin]]-Prorata_temporis[[#This Row],[Mois de début]]+1 -> 12 | S29: =IFERROR(INDEX(Calendrier[Etapes clés],MATCH(INT((Prorata_temporis[[#This Row],[Mois de début]]+Prorata_temporis[[#This Row],[Mois de fin]]+1)/2),Calendrier[Délais en mois],1)+1),"#! Vérifiez l'onglet Calendrier et que le milieu de la tâche tombe bien dans une étape clé") -> EC02 | T29: =IF(Prorata_temporis[[#This Row],[Destination des aides]]="Fonctionnement",SUM(Prorata_temporis[[#This Row],[Personne.mois cat 1]:[Personne.mois cat 3]]),0) -> 0 | U29: =SUMPRODUCT(INDEX(Partenaires[[Salaire Cat. 1]:[Salaire Cat. 3]],MATCH(Prorata_temporis[[#This Row],[Partenaire]],Partenaires[Nom court],0),),Prorata_temporis[[#This Row],[Personne.mois cat 1]:[Personne.mois cat 3]]) -> 0 | V29: =20%*Prorata_temporis[[#This Row],[Salaires]] -> 0 | W29: =Prorata_temporis[[#This Row],[Dépenses de sous-traitance H.T.]] -> 100000 | X29: =Prorata_temporis[[#This Row],[Contribution aux amortissements]] -> 0 | Y29: =Prorata_temporis[[#This Row],[Autres dépenses]] -> 0 | Z29: =IF(Prorata_temporis[[#This Row],[Destination des aides]]="Fonctionnement",SUM(Prorata_temporis[[#This Row],[Salaires]:[Autres dépenses2]]),0) -> 100000 | AA29: =IF(Prorata_temporis[[#This Row],[Destination des aides]]="Investissement",ROUND(SUM(Prorata_temporis[[#This Row],[Salaires]:[Autres dépenses2]],Prorata_temporis[[#This Row],[Investissements]]),0),0) -> 0 | AB29: =Prorata_temporis[[#This Row],[Coûts de fonctionnement]]+Prorata_temporis[[#This Row],[Coûts d''investissement]] -> 100000 | AC29: =(MATCH(Prorata_temporis[[#This Row],[Mois de début]]-1,Calendrier[Délais en mois],1)<>MATCH(Prorata_temporis[[#This Row],[Mois de fin]]-1,Calendrier[Délais en mois],1)) -> FALSE
A30: LOT 4 | C30: 2 | D30: Détachement de personnel de ZED chez IGREC | E30: IGREC | F30: 13 | G30: 24 | H30: 4.3 | L30: 30000 | P30: =IF(Prorata_temporis[[#This Row],[Investissements]]>0,"Investissement","Fonctionnement") -> Fonctionnement | Q30: =INDEX(Partenaires[Type de coûts],MATCH(Prorata_temporis[[#This Row],[Partenaire]],Partenaires[Nom court],0)) -> Complets | R30: =Prorata_temporis[[#This Row],[Mois de fin]]-Prorata_temporis[[#This Row],[Mois de début]]+1 -> 12 | S30: =IFERROR(INDEX(Calendrier[Etapes clés],MATCH(INT((Prorata_temporis[[#This Row],[Mois de début]]+Prorata_temporis[[#This Row],[Mois de fin]]+1)/2),Calendrier[Délais en mois],1)+1),"#! Vérifiez l'onglet Calendrier et que le milieu de la tâche tombe bien dans une étape clé") -> EC02 | T30: =IF(Prorata_temporis[[#This Row],[Destination des aides]]="Fonctionnement",SUM(Prorata_temporis[[#This Row],[Personne.mois cat 1]:[Personne.mois cat 3]]),0) -> 0 | U30: =SUMPRODUCT(INDEX(Partenaires[[Salaire Cat. 1]:[Salaire Cat. 3]],MATCH(Prorata_temporis[[#This Row],[Partenaire]],Partenaires[Nom court],0),),Prorata_temporis[[#This Row],[Personne.mois cat 1]:[Personne.mois cat 3]]) -> 0 | V30: =20%*Prorata_temporis[[#This Row],[Salaires]] -> 0 | W30: =Prorata_temporis[[#This Row],[Dépenses de sous-traitance H.T.]] -> 30000 | X30: =Prorata_temporis[[#This Row],[Contribution aux amortissements]] -> 0 | Y30: =Prorata_temporis[[#This Row],[Autres dépenses]] -> 0 | Z30: =IF(Prorata_temporis[[#This Row],[Destination des aides]]="Fonctionnement",SUM(Prorata_temporis[[#This Row],[Salaires]:[Autres dépenses2]]),0) -> 30000 | AA30: =IF(Prorata_temporis[[#This Row],[Destination des aides]]="Investissement",ROUND(SUM(Prorata_temporis[[#This Row],[Salaires]:[Autres dépenses2]],Prorata_temporis[[#This Row],[Investissements]]),0),0) -> 0 | AB30: =Prorata_temporis[[#This Row],[Coûts de fonctionnement]]+Prorata_temporis[[#This Row],[Coûts d''investissement]] -> 30000 | AC30: =(MATCH(Prorata_temporis[[#This Row],[Mois de début]]-1,Calendrier[Délais en mois],1)<>MATCH(Prorata_temporis[[#This Row],[Mois de fin]]-1,Calendrier[Délais en mois],1)) -> FALSE
A31: LOT 5 | C31: 1 | D31: Investissement four | E31: IXE | F31: 25 | G31: 36 | H31: 5.1 | I31: 6 | J31: 3 | O31: 250000 | P31: =IF(Prorata_temporis[[#This Row],[Investissements]]>0,"Investissement","Fonctionnement") -> Investissement | Q31: =INDEX(Partenaires[Type de coûts],MATCH(Prorata_temporis[[#This Row],[Partenaire]],Partenaires[Nom court],0)) -> Complets | R31: =Prorata_temporis[[#This Row],[Mois de fin]]-Prorata_temporis[[#This Row],[Mois de début]]+1 -> 12 | S31: =IFERROR(INDEX(Calendrier[Etapes clés],MATCH(INT((Prorata_temporis[[#This Row],[Mois de début]]+Prorata_temporis[[#This Row],[Mois de fin]]+1)/2),Calendrier[Délais en mois],1)+1),"#! Vérifiez l'onglet Calendrier et que le milieu de la tâche tombe bien dans une étape clé") -> EC03 | T31: =IF(Prorata_temporis[[#This Row],[Destination des aides]]="Fonctionnement",SUM(Prorata_temporis[[#This Row],[Personne.mois cat 1]:[Personne.mois cat 3]]),0) -> 0 | U31: =SUMPRODUCT(INDEX(Partenaires[[Salaire Cat. 1]:[Salaire Cat. 3]],MATCH(Prorata_temporis[[#This Row],[Partenaire]],Partenaires[Nom court],0),),Prorata_temporis[[#This Row],[Personne.mois cat 1]:[Personne.mois cat 3]]) -> 66000 | V31: =20%*Prorata_temporis[[#This Row],[Salaires]] -> 13200 | W31: =Prorata_temporis[[#This Row],[Dépenses de sous-traitance H.T.]] -> 0 | X31: =Prorata_temporis[[#This Row],[Contribution aux amortissements]] -> 0 | Y31: =Prorata_temporis[[#This Row],[Autres dépenses]] -> 0 | Z31: =IF(Prorata_temporis[[#This Row],[Destination des aides]]="Fonctionnement",SUM(Prorata_temporis[[#This Row],[Salaires]:[Autres dépenses2]]),0) -> 0 | AA31: =IF(Prorata_temporis[[#This Row],[Destination des aides]]="Investissement",ROUND(SUM(Prorata_temporis[[#This Row],[Salaires]:[Autres dépenses2]],Prorata_temporis[[#This Row],[Investissements]]),0),0) -> 329200 | AB31: =Prorata_temporis[[#This Row],[Coûts de fonctionnement]]+Prorata_temporis[[#This Row],[Coûts d''investissement]] -> 329200 | AC31: =(MATCH(Prorata_temporis[[#This Row],[Mois de début]]-1,Calendrier[Délais en mois],1)<>MATCH(Prorata_temporis[[#This Row],[Mois de fin]]-1,Calendrier[Délais en mois],1)) -> FALSE
A32: LOT 5 | C32: 2 | D32: Investissement laser | E32: IGREC | F32: 25 | G32: 36 | H32: 5.2 | I32: 2 | J32: 2 | K32: 2 | L32: 10000 | O32: 700000 | P32: =IF(Prorata_temporis[[#This Row],[Investissements]]>0,"Investissement","Fonctionnement") -> Investissement | Q32: =INDEX(Partenaires[Type de coûts],MATCH(Prorata_temporis[[#This Row],[Partenaire]],Partenaires[Nom court],0)) -> Complets | R32: =Prorata_temporis[[#This Row],[Mois de fin]]-Prorata_temporis[[#This Row],[Mois de début]]+1 -> 12 | S32: =IFERROR(INDEX(Calendrier[Etapes clés],MATCH(INT((Prorata_temporis[[#This Row],[Mois de début]]+Prorata_temporis[[#This Row],[Mois de fin]]+1)/2),Calendrier[Délais en mois],1)+1),"#! Vérifiez l'onglet Calendrier et que le milieu de la tâche tombe bien dans une étape clé") -> EC03 | T32: =IF(Prorata_temporis[[#This Row],[Destination des aides]]="Fonctionnement",SUM(Prorata_temporis[[#This Row],[Personne.mois cat 1]:[Personne.mois cat 3]]),0) -> 0 | U32: =SUMPRODUCT(INDEX(Partenaires[[Salaire Cat. 1]:[Salaire Cat. 3]],MATCH(Prorata_temporis[[#This Row],[Partenaire]],Partenaires[Nom court],0),),Prorata_temporis[[#This Row],[Personne.mois cat 1]:[Personne.mois cat 3]]) -> 32000 | V32: =20%*Prorata_temporis[[#This Row],[Salaires]] -> 6400 | W32: =Prorata_temporis[[#This Row],[Dépenses de sous-traitance H.T.]] -> 10000 | X32: =Prorata_temporis[[#This Row],[Contribution aux amortissements]] -> 0 | Y32: =Prorata_temporis[[#This Row],[Autres dépenses]] -> 0 | Z32: =IF(Prorata_temporis[[#This Row],[Destination des aides]]="Fonctionnement",SUM(Prorata_temporis[[#This Row],[Salaires]:[Autres dépenses2]]),0) -> 0 | AA32: =IF(Prorata_temporis[[#This Row],[Destination des aides]]="Investissement",ROUND(SUM(Prorata_temporis[[#This Row],[Salaires]:[Autres dépenses2]],Prorata_temporis[[#This Row],[Investissements]]),0),0) -> 748400 | AB32: =Prorata_temporis[[#This Row],[Coûts de fonctionnement]]+Prorata_temporis[[#This Row],[Coûts d''investissement]] -> 748400 | AC32: =(MATCH(Prorata_temporis[[#This Row],[Mois de début]]-1,Calendrier[Délais en mois],1)<>MATCH(Prorata_temporis[[#This Row],[Mois de fin]]-1,Calendrier[Délais en mois],1)) -> FALSE
A33: LOT 6 | C33: 1 | D33: Foire DRUPA | E33: IXE | F33: 25 | G33: 36 | H33: 6.1 | I33: 12 | L33: 25000 | N33: 5000 | P33: =IF(Prorata_temporis[[#This Row],[Investissements]]>0,"Investissement","Fonctionnement") -> Fonctionnement | Q33: =INDEX(Partenaires[Type de coûts],MATCH(Prorata_temporis[[#This Row],[Partenaire]],Partenaires[Nom court],0)) -> Complets | R33: =Prorata_temporis[[#This Row],[Mois de fin]]-Prorata_temporis[[#This Row],[Mois de début]]+1 -> 12 | S33: =IFERROR(INDEX(Calendrier[Etapes clés],MATCH(INT((Prorata_temporis[[#This Row],[Mois de début]]+Prorata_temporis[[#This Row],[Mois de fin]]+1)/2),Calendrier[Délais en mois],1)+1),"#! Vérifiez l'onglet Calendrier et que le milieu de la tâche tombe bien dans une étape clé") -> EC03 | T33: =IF(Prorata_temporis[[#This Row],[Destination des aides]]="Fonctionnement",SUM(Prorata_temporis[[#This Row],[Personne.mois cat 1]:[Personne.mois cat 3]]),0) -> 12 | U33: =SUMPRODUCT(INDEX(Partenaires[[Salaire Cat. 1]:[Salaire Cat. 3]],MATCH(Prorata_temporis[[#This Row],[Partenaire]],Partenaires[Nom court],0),),Prorata_temporis[[#This Row],[Personne.mois cat 1]:[Personne.mois cat 3]]) -> 96000 | V33: =20%*Prorata_temporis[[#This Row],[Salaires]] -> 19200 | W33: =Prorata_temporis[[#This Row],[Dépenses de sous-traitance H.T.]] -> 25000 | X33: =Prorata_temporis[[#This Row],[Contribution aux amortissements]] -> 0 | Y33: =Prorata_temporis[[#This Row],[Autres dépenses]] -> 5000 | Z33: =IF(Prorata_temporis[[#This Row],[Destination des aides]]="Fonctionnement",SUM(Prorata_temporis[[#This Row],[Salaires]:[Autres dépenses2]]),0) -> 145200 | AA33: =IF(Prorata_temporis[[#This Row],[Destination des aides]]="Investissement",ROUND(SUM(Prorata_temporis[[#This Row],[Salaires]:[Autres dépenses2]],Prorata_temporis[[#This Row],[Investissements]]),0),0) -> 0 | AB33: =Prorata_temporis[[#This Row],[Coûts de fonctionnement]]+Prorata_temporis[[#This Row],[Coûts d''investissement]] -> 145200 | AC33: =(MATCH(Prorata_temporis[[#This Row],[Mois de début]]-1,Calendrier[Délais en mois],1)<>MATCH(Prorata_temporis[[#This Row],[Mois de fin]]-1,Calendrier[Délais en mois],1)) -> FALSE
A34: LOT 6 | C34: 2 | D34: Foire SITL | E34: IGREC | F34: 18 | G34: 24 | H34: 6.2 | I34: 4.421052632 | J34: 0 | K34: 0 | L34: 11052.63158 | M34: 0 | N34: 3684.210526 | O34: 0 | P34: =IF(Prorata_temporis[[#This Row],[Investissements]]>0,"Investissement","Fonctionnement") -> Fonctionnement | Q34: =INDEX(Partenaires[Type de coûts],MATCH(Prorata_temporis[[#This Row],[Partenaire]],Partenaires[Nom court],0)) -> Complets | R34: =Prorata_temporis[[#This Row],[Mois de fin]]-Prorata_temporis[[#This Row],[Mois de début]]+1 -> 7 | S34: =IFERROR(INDEX(Calendrier[Etapes clés],MATCH(INT((Prorata_temporis[[#This Row],[Mois de début]]+Prorata_temporis[[#This Row],[Mois de fin]]+1)/2),Calendrier[Délais en mois],1)+1),"#! Vérifiez l'onglet Calendrier et que le milieu de la tâche tombe bien dans une étape clé") -> EC02 | T34: =IF(Prorata_temporis[[#This Row],[Destination des aides]]="Fonctionnement",SUM(Prorata_temporis[[#This Row],[Personne.mois cat 1]:[Personne.mois cat 3]]),0) -> 4.421052632 | U34: =SUMPRODUCT(INDEX(Partenaires[[Salaire Cat. 1]:[Salaire Cat. 3]],MATCH(Prorata_temporis[[#This Row],[Partenaire]],Partenaires[Nom court],0),),Prorata_temporis[[#This Row],[Personne.mois cat 1]:[Personne.mois cat 3]]) -> 33157.89474 | V34: =20%*Prorata_temporis[[#This Row],[Salaires]] -> 6631.578947 | W34: =Prorata_temporis[[#This Row],[Dépenses de sous-traitance H.T.]] -> 11052.63158 | X34: =Prorata_temporis[[#This Row],[Contribution aux amortissements]] -> 0 | Y34: =Prorata_temporis[[#This Row],[Autres dépenses]] -> 3684.210526 | Z34: =IF(Prorata_temporis[[#This Row],[Destination des aides]]="Fonctionnement",SUM(Prorata_temporis[[#This Row],[Salaires]:[Autres dépenses2]]),0) -> 54526.31579 | AA34: =IF(Prorata_temporis[[#This Row],[Destination des aides]]="Investissement",ROUND(SUM(Prorata_temporis[[#This Row],[Salaires]:[Autres dépenses2]],Prorata_temporis[[#This Row],[Investissements]]),0),0) -> 0 | AB34: =Prorata_temporis[[#This Row],[Coûts de fonctionnement]]+Prorata_temporis[[#This Row],[Coûts d''investissement]] -> 54526.31579 | AC34: =(MATCH(Prorata_temporis[[#This Row],[Mois de début]]-1,Calendrier[Délais en mois],1)<>MATCH(Prorata_temporis[[#This Row],[Mois de fin]]-1,Calendrier[Délais en mois],1)) -> FALSE
A35: LOT 6 | C35: 2 | D35: Foire SITL | E35: IGREC | F35: 25 | G35: 36 | H35: 6.2 | I35: 7.578947368 | J35: 0 | K35: 0 | L35: 18947.36842 | M35: 0 | N35: 6315.789474 | O35: 0 | P35: =IF(Prorata_temporis[[#This Row],[Investissements]]>0,"Investissement","Fonctionnement") -> Fonctionnement | Q35: =INDEX(Partenaires[Type de coûts],MATCH(Prorata_temporis[[#This Row],[Partenaire]],Partenaires[Nom court],0)) -> Complets | R35: =Prorata_temporis[[#This Row],[Mois de fin]]-Prorata_temporis[[#This Row],[Mois de début]]+1 -> 12 | S35: =IFERROR(INDEX(Calendrier[Etapes clés],MATCH(INT((Prorata_temporis[[#This Row],[Mois de début]]+Prorata_temporis[[#This Row],[Mois de fin]]+1)/2),Calendrier[Délais en mois],1)+1),"#! Vérifiez l'onglet Calendrier et que le milieu de la tâche tombe bien dans une étape clé") -> EC03 | T35: =IF(Prorata_temporis[[#This Row],[Destination des aides]]="Fonctionnement",SUM(Prorata_temporis[[#This Row],[Personne.mois cat 1]:[Personne.mois cat 3]]),0) -> 7.578947368 | U35: =SUMPRODUCT(INDEX(Partenaires[[Salaire Cat. 1]:[Salaire Cat. 3]],MATCH(Prorata_temporis[[#This Row],[Partenaire]],Partenaires[Nom court],0),),Prorata_temporis[[#This Row],[Personne.mois cat 1]:[Personne.mois cat 3]]) -> 56842.10526 | V35: =20%*Prorata_temporis[[#This Row],[Salaires]] -> 11368.42105 | W35: =Prorata_temporis[[#This Row],[Dépenses de sous-traitance H.T.]] -> 18947.36842 | X35: =Prorata_temporis[[#This Row],[Contribution aux amortissements]] -> 0 | Y35: =Prorata_temporis[[#This Row],[Autres dépenses]] -> 6315.789474 | Z35: =IF(Prorata_temporis[[#This Row],[Destination des aides]]="Fonctionnement",SUM(Prorata_temporis[[#This Row],[Salaires]:[Autres dépenses2]]),0) -> 93473.68421 | AA35: =IF(Prorata_temporis[[#This Row],[Destination des aides]]="Investissement",ROUND(SUM(Prorata_temporis[[#This Row],[Salaires]:[Autres dépenses2]],Prorata_temporis[[#This Row],[Investissements]]),0),0) -> 0 | AB35: =Prorata_temporis[[#This Row],[Coûts de fonctionnement]]+Prorata_temporis[[#This Row],[Coûts d''investissement]] -> 93473.68421 | AC35: =(MATCH(Prorata_temporis[[#This Row],[Mois de début]]-1,Calendrier[Délais en mois],1)<>MATCH(Prorata_temporis[[#This Row],[Mois de fin]]-1,Calendrier[Délais en mois],1)) -> FALSE
A36: LOT 6 | C36: 3 | D36: Test EC 1 mois fin calendrier | E36: IGREC | F36: 36 | G36: 36 | H36: 6.3 | I36: 5 | J36: 0 | K36: 0 | L36: 1000 | P36: =IF(Prorata_temporis[[#This Row],[Investissements]]>0,"Investissement","Fonctionnement") -> Fonctionnement | Q36: =INDEX(Partenaires[Type de coûts],MATCH(Prorata_temporis[[#This Row],[Partenaire]],Partenaires[Nom court],0)) -> Complets | R36: =Prorata_temporis[[#This Row],[Mois de fin]]-Prorata_temporis[[#This Row],[Mois de début]]+1 -> 1 | S36: =IFERROR(INDEX(Calendrier[Etapes clés],MATCH(INT((Prorata_temporis[[#This Row],[Mois de début]]+Prorata_temporis[[#This Row],[Mois de fin]]+1)/2),Calendrier[Délais en mois],1)+1),"#! Vérifiez l'onglet Calendrier et que le milieu de la tâche tombe bien dans une étape clé") -> #! Vérifiez l'onglet Calendrier et que le milieu de la tâche tombe bien dans une étape clé | T36: =IF(Prorata_temporis[[#This Row],[Destination des aides]]="Fonctionnement",SUM(Prorata_temporis[[#This Row],[Personne.mois cat 1]:[Personne.mois cat 3]]),0) -> 5 | U36: =SUMPRODUCT(INDEX(Partenaires[[Salaire Cat. 1]:[Salaire Cat. 3]],MATCH(Prorata_temporis[[#This Row],[Partenaire]],Partenaires[Nom court],0),),Prorata_temporis[[#This Row],[Personne.mois cat 1]:[Personne.mois cat 3]]) -> 37500 | V36: =20%*Prorata_temporis[[#This Row],[Salaires]] -> 7500 | W36: =Prorata_temporis[[#This Row],[Dépenses de sous-traitance H.T.]] -> 1000 | X36: =Prorata_temporis[[#This Row],[Contribution aux amortissements]] -> 0 | Y36: =Prorata_temporis[[#This Row],[Autres dépenses]] -> 0 | Z36: =IF(Prorata_temporis[[#This Row],[Destination des aides]]="Fonctionnement",SUM(Prorata_temporis[[#This Row],[Salaires]:[Autres dépenses2]]),0) -> 46000 | AA36: =IF(Prorata_temporis[[#This Row],[Destination des aides]]="Investissement",ROUND(SUM(Prorata_temporis[[#This Row],[Salaires]:[Autres dépenses2]],Prorata_temporis[[#This Row],[Investissements]]),0),0) -> 0 | AB36: =Prorata_temporis[[#This Row],[Coûts de fonctionnement]]+Prorata_temporis[[#This Row],[Coûts d''investissement]] -> 46000 | AC36: =(MATCH(Prorata_temporis[[#This Row],[Mois de début]]-1,Calendrier[Délais en mois],1)<>MATCH(Prorata_temporis[[#This Row],[Mois de fin]]-1,Calendrier[Délais en mois],1)) -> FALSE
A37: Total | D37: =SUMPRODUCT(1/COUNTIF(Prorata_temporis[Intitulé de la tache ou de l''investissement],Prorata_temporis[Intitulé de la tache ou de l''investissement])) -> 13 | E37: =SUMPRODUCT(1/COUNTIF(Prorata_temporis[Partenaire],Prorata_temporis[Partenaire])) -> 5 | H37: =SUMPRODUCT(1/COUNTIF(Prorata_temporis[Livrable],Prorata_temporis[Livrable])) -> 16 | I37: =SUBTOTAL(109,Prorata_temporis[Personne.mois cat 1]) -> 358 | J37: =SUBTOTAL(109,Prorata_temporis[Personne.mois cat 2]) -> 152 | K37: =SUBTOTAL(109,Prorata_temporis[Personne.mois cat 3]) -> 38 | L37: =SUBTOTAL(109,Prorata_temporis[Dépenses de sous-traitance H.T.]) -> 1008500 | M37: =SUBTOTAL(109,Prorata_temporis[Contribution aux amortissements]) -> 392500 | N37: =SUBTOTAL(109,Prorata_temporis[Autres dépenses]) -> 232500 | O37: =SUBTOTAL(109,Prorata_temporis[Investissements]) -> 950000 | T37: =SUBTOTAL(109,Prorata_temporis[Total pers.mois présentés]) -> 533 | U37: =SUBTOTAL(109,Prorata_temporis[Salaires]) -> 3785000 | V37: =SUBTOTAL(109,Prorata_temporis[Frais généraux]) -> 757000 | W37: =SUBTOTAL(105,Prorata_temporis[Sous-traitance]) -> 0 | X37: =SUBTOTAL(109,Prorata_temporis[Dotations aux amortissements]) -> 392500 | Y37: =SUBTOTAL(109,Prorata_temporis[Autres dépenses2]) -> 232500 | Z37: =SUBTOTAL(109,Prorata_temporis[Coûts de fonctionnement]) -> 6047900 | AA37: =SUBTOTAL(109,Prorata_temporis[Coûts d''investissement]) -> 1077600 | AB37: =SUBTOTAL(109,Prorata_temporis[Coûts totaux]) -> 7125500

Sheet Part. vs. EC prorata
I1: Devis sans prorata temporis
A3: Somme de Coûts totaux | C3: Etape-clef
A4: Destination des aides | B4: Partenaire | C4: EC01 | D4: EC02 | E4: EC03 | F4: Total général
A5: Fonctionnement | B5: ALPHA | C5: 70500 | D5: 87400 | F5: 157900
B6: BETA | C6: 70500 | D6: 87400 | F6: 157900
B7: IGREC | C7: 194000 | D7: 278526.3158 | E7: 869473.6842 | F7: 1342000
B8: IXE | C8: 440266.6667 | D8: 712133.3333 | E8: 2218200 | F8: 3370600
B9: ZED | C9: 88500 | D9: 177000 | E9: 708000 | F9: 973500
A10: Total Fonctionnement | C10: 863766.6667 | D10: 1342459.649 | E10: 3795673.684 | F10: 6001900
A11: Investissement | B11: IGREC | E11: 748400 | F11: 748400
B12: IXE | E12: 329200 | F12: 329200
A13: Total Investissement | E13: 1077600 | F13: 1077600
A14: Total général | C14: 863766.6667 | D14: 1342459.649 | E14: 4873273.684 | F14: 7079500

Sheet Part. vs. EC
A3: Somme de Coûts totaux | C3: Etape-clef
A4: Destination des aides | B4: Partenaire | C4: EC01 | D4: EC02 | E4: EC03 | F4: Total général
A5: Fonctionnement | B5: ALPHA | C5: 70500 | D5: 87400 | F5: 157900
B6: BETA | C6: 70500 | D6: 87400 | F6: 157900
B7: IGREC | C7: 194000 | D7: 224000 | E7: 970000 | F7: 1388000
B8: IXE | C8: 526200 | D8: 626200 | E8: 2218200 | F8: 3370600
B9: ZED | C9: 88500 | D9: 177000 | E9: 708000 | F9: 973500
A10: Total Fonctionnement | C10: 949700 | D10: 1202000 | E10: 3896200 | F10: 6047900
A11: Investissement | B11: IGREC | E11: 748400 | F11: 748400
B12: IXE | E12: 329200 | F12: 329200
A13: Total Investissement | E13: 1077600 | F13: 1077600
A14: Total général | C14: 949700 | D14: 1202000 | E14: 4973800 | F14: 7125500

Sheet pers.mois vs. EC
A2: Somme de Total pers.mois présentés | C2: Etape-clef
A3: Destination des aides | B3: Partenaire | C3: EC01 | D3: EC02 | E3: EC03 | F3: Total général
A4: Fonctionnement | B4: ALPHA | C4: 9 | D4: 12 | F4: 21
B5: BETA | C5: 9 | D5: 12 | F5: 21
B6: IGREC | C6: 18 | D6: 18 | E6: 89 | F6: 125
B7: IXE | C7: 43 | D7: 43 | E7: 181 | F7: 267
B8: ZED | C8: 9 | D8: 18 | E8: 72 | F8: 99
A9: Total Fonctionnement | C9: 88 | D9: 103 | E9: 342 | F9: 533
A10: Investissement | B10: IGREC | E10: 0 | F10: 0
B11: IXE | E11: 0 | F11: 0
A12: Total Investissement | E12: 0 | F12: 0
A13: Total général | C13: 88 | D13: 103 | E13: 342 | F13: 533

Sheet Part. vs nature coûts
B4: Données
A5: Partenaire | B5: Somme de Salaires | C5: Somme de Frais généraux | D5: Somme de Sous-traitance | E5: Somme de Dotations aux amortissements | F5: Somme de Autres dépenses | G5: Somme de Coûts de fonctionnement | H5: Somme de Coûts d'investissement | I5: Somme de Coûts totaux
A6: IXE | B6: 1914000 | C6: 382800 | D6: 725000 | E6: 300000 | F6: 128000 | G6: 3370600 | H6: 329200 | I6: 3699800
A7: IGREC | B7: 879500 | C7: 175900 | D7: 251000 | E7: 60000 | F7: 70000 | G7: 1388000 | H7: 748400 | I7: 2136400
A8: ZED | B8: 742500 | C8: 148500 | D8: 27500 | E8: 27500 | F8: 27500 | G8: 973500 | H8: 0 | I8: 973500
A9: ALPHA | B9: 124500 | C9: 24900 | D9: 2500 | E9: 2500 | F9: 3500 | G9: 157900 | H9: 0 | I9: 157900
A10: BETA | B10: 124500 | C10: 24900 | D10: 2500 | E10: 2500 | F10: 3500 | G10: 157900 | H10: 0 | I10: 157900
A11: Total général | B11: 3785000 | C11: 757000 | D11: 1008500 | E11: 392500 | F11: 232500 | G11: 6047900 | H11: 1077600 | I11: 7125500

Sheet Lots vs nature coûts
C4: Données
A5: Lot | B5: Sous-lot (facultatif) | C5: Somme de Salaires | D5: Somme de Frais généraux | E5: Somme de Sous-traitance | F5: Somme de Dotations aux amortissements | G5: Somme de Autres dépenses | H5: Somme de Coûts de fonctionnement | I5: Somme de Coûts d'investissement | J5: Somme de Coûts totaux
A6: LOT 1 | B6: (vide) | C6: 24000 | D6: 4800 | E6: 0 | F6: 0 | G6: 3000 | H6: 31800 | I6: 0 | J6: 31800
A7: LOT 2 | B7: (vide) | C7: 1063500 | D7: 212700 | E7: 207500 | F7: 102500 | G7: 59500 | H7: 1645700 | I7: 0 | J7: 1645700
A8: LOT 3 | B8: (vide) | C8: 2172000 | D8: 434400 | E8: 540000 | F8: 260000 | G8: 140000 | H8: 3546400 | I8: 0 | J8: 3546400
A9: LOT 4 | B9: (vide) | C9: 204000 | D9: 40800 | E9: 195000 | F9: 30000 | G9: 15000 | H9: 484800 | I9: 0 | J9: 484800
A10: LOT 5 | B10: (vide) | C10: 98000 | D10: 19600 | E10: 10000 | F10: 0 | G10: 0 | H10: 0 | I10: 1077600 | J10: 1077600
A11: LOT 6 | B11: (vide) | C11: 223500 | D11: 44700 | E11: 56000 | F11: 0 | G11: 15000 | H11: 339200 | I11: 0 | J11: 339200
A12: Total général | C12: 3785000 | D12: 757000 | E12: 1008500 | F12: 392500 | G12: 232500 | H12: 6047900 | I12: 1077600 | J12: 7125500

Sheet Part. vs lots
A4: Somme de Coûts totaux | B4: Lot
A5: Partenaire | B5: LOT 1 | C5: LOT 2 | D5: LOT 3 | E5: LOT 4 | F5: LOT 5 | G5: LOT 6 | H5: Total général
A6: IXE | B6: 31800 | C6: 773400 | D6: 2062400 | E6: 357800 | F6: 329200 | G6: 145200 | H6: 3699800
A7: IGREC | B7: 0 | C7: 291000 | D7: 776000 | E7: 127000 | F7: 748400 | G7: 194000 | H7: 2136400
A8: ZED | B8: 0 | C8: 265500 | D8: 708000 | E8: 0 | F8: 0 | G8: 0 | H8: 973500
A9: ALPHA | B9: 0 | C9: 157900 | D9: 0 | E9: 0 | F9: 0 | G9: 0 | H9: 157900
A10: BETA | B10: 0 | C10: 157900 | D10: 0 | E10: 0 | F10: 0 | G10: 0 | H10: 157900
A11: Total général | B11: 31800 | C11: 1645700 | D11: 3546400 | E11: 484800 | F11: 1077600 | G11: 339200 | H11: 7125500

Sheet Part. vs sous-lots
A4: Somme de Coûts totaux
A5: Lot | B5: Partenaire | C5: Total
A6: LOT 1 | B6: IXE | C6: 31800
A7: Total LOT 1 | C7: 31800
A8: LOT 2 | B8: IXE | C8: 773400
B9: IGREC | C9: 291000
B10: ZED | C10: 265500
B11: ALPHA | C11: 157900
B12: BETA | C12: 157900
A13: Total LOT 2 | C13: 1645700
A14: LOT 3 | B14: IXE | C14: 2062400
B15: IGREC | C15: 776000
B16: ZED | C16: 708000
A17: Total LOT 3 | C17: 3546400
A18: LOT 4 | B18: IXE | C18: 357800
B19: IGREC | C19: 127000
A20: Total LOT 4 | C20: 484800
A21: LOT 5 | B21: IXE | C21: 329200
B22: IGREC | C22: 748400
A23: Total LOT 5 | C23: 1077600
A24: LOT 6 | B24: IXE | C24: 145200
B25: IGREC | C25: 194000
A26: Total LOT 6 | C26: 339200
A27: Total général | C27: 7125500
